Workbook

Sheet 1. Utility_Info_
AB1: Algoma Power Inc.
AB2: Atikokan Hydro Inc.
AB3: Attawapiskat Power Corporation
AB4: Bluewater Power Distribution Corp.
AB5: Brant County Power
AB6: Brantford Power Inc.
AB7: Burlington Hydro Inc.
AB8: Cambridge and North Dumfries Hydro
AB9: Canadian Niagara Power Inc. – Eastern Ontario Power/Fort Erie/Port Colborne
AB10: Centre Wellington Hydro Ltd.
AB11: Chapleau Public Utilities Corporation
AB12: COLLUS Power Corp.
H13: Version | I13: 4 | AB13: Cooperative Hydro Embrun Inc.
AB14: E.L.K. Energy Inc.
C15: Utility Name | D15: Alectra Utilities Corporation - PowerStream Rate Zone | AB15: Enersource Hydro Mississauga Inc.
AB16: Entegrus Powerlines Inc.
C17: Assigned EB Number | AB17: ENWIN Utilities Ltd.
AB18: Erie Thames Powerlines Corp.
C19: Name and Title | D19: Natalie Yeates, Director, Regulatory Affairs & Reporting | AB19: Espanola Regional Hydro Distribution Corporation
AB20: Essex Powerlines Corporation
C21: Phone Number | D21: 416-617-1959 | AB21: Festival Hydro Inc.
AB22: Fort Albany Power Corporation
C23: Email Address | D23: natalie.yeates@alectrautilities.com | AB23: Fort Frances Power Corporation
AB24: Greater Sudbury Hydro Inc.
C25: Date | AB25: Grimsby Power Inc.
AB26: Guelph Hydro Electric Systems Inc.
C27: ICM Project | D27: 2019 - Road Authority YRRT | AB27: Halton Hills Hydro Inc.
AB28: Hearst Power Distribution Co. Ltd.
A29: Note: Drop-down lists are shaded blue; Input cells are shaded green.
AB31: Horizon Utilities Corporation
AB32: Hydro 2000 Inc.
AB33: Hydro Hawkesbury Inc.
AB34: Hydro One Brampton Networks Inc.
AB35: Hydro One Networks Inc.
AB36: Hydro One Remote Communities Inc.
AB37: Hydro Ottawa Limited
AB38: Innisfil Hydro Dist. Systems Limited
AB39: Kashechewan Power Corporation
AB40: Kenora Hydro Electric Corporation Ltd.
AB41: Kingston Hydro Corporation
AB42: Kitchener-Wilmot Hydro Inc.
AB43: Lakefront Utilities Inc.
AB44: Lakeland Power Distribution Ltd.
AB45: London Hydro Inc.
AB46: Midland Power Utility Corporation
AB47: Milton Hydro Distribution Inc.
AB48: Newmarket – Tay Power Distribution Ltd.
AB49: Niagara Peninsula Energy Inc.
AB50: Niagara-on-the-Lake Hydro Inc.
AB51: Norfolk Power Distribution Ltd.
AB52: North Bay Hydro Distribution Limited
AB53: Northern Ontario Wires Inc.
AB54: Oakville Hydro Distribution Inc.
AB55: Orangeville Hydro Limited
AB56: Orillia Power Distribution Corp.
AB57: Oshawa PUC Networks Inc.
AB58: Ottawa River Power Corporation
AB59: Parry Sound Power Corporation
AB60: Peterborough Distribution Inc.
AB61: PowerStream Inc.
AB62: PUC Distribution Inc.
AB63: Renfrew Hydro Inc.
AB64: Rideau St. Lawrence Distribution Inc.
AB65: St. Thomas Energy Inc.
AB66: Sioux Lookout Hydro Inc.
AB67: Thunder Bay Hydro Electricity Distribution
AB68: Tillsonburg Hydro Inc.
AB69: Toronto Hydro-Electric System Limited
AB70: Veridian Connections Inc.
AB71: Wasaga Distribution Inc.
AB72: Waterloo North Hydro Inc.
AB73: Welland Hydro Electric System Corp.
AB74: Wellington North Power Inc.
AB75: West Coast Huron Energy Inc.
AB76: Westario Power Inc.
AB77: Whitby Hydro Electric Corporation
AB78: Woodstock Hydro Services Inc.
AB81: Alectra Utilities Corporation - PowerStream Rate Zone
AB82: Alectra Utilities Corporation - Brampton Rate Zone
AB83: Alectra Utilities Corporation - Enersource Rate Zone
AB84: Alectra Utilities Corporation - Horizon Rate Zone
AB85: Alectra Utilities Corporation - Guelph Rate Zone

Sheet 2. ICM_Costs
G18: 2019 | K18: Total
B19: Sheet 2: ICM Capital Cost Data | G19: Audited Actual
B39: 1 | C39: Capital Costs
E40: Asset Type
C41: SYSTEM ACCESS | E41: Asset type must be selected to enable calculations | G41: =IF(ISBLANK(G19),"",G19) -> Audited Actual | I41: =IF(ISBLANK(I19),"",I19) -> 
E42: OH Swtch & Cpctrs | G42: 1557599.171 | K42: =SUM(G42,I42) -> 1557599.171
E44: Concrete Poles | G44: 9520855.362 | K44: =SUM(G44,I44) -> 9520855.362
E46: Wood Poles | G46: -2193.759795 | K46: =SUM(G46,I46) -> -2193.759795
E48: OH Transformers | G48: 1730665.746 | K48: =SUM(G48,I48) -> 1730665.746
E50: OH Prim Cond & Dev | G50: 2595998.619 | K50: =SUM(G50,I50) -> 2595998.619
E52: OH Sec Cond & Dev | G52: 865332.873 | K52: 865332.873
E54: UG Transformers | G54: 175689.7003 | K54: 175689.7003
E56: UG Conduit | G56: 488026.9451 | K56: 488026.9451
E58: UG Prim XLPE TR | G58: 1300042.836 | K58: 1300042.836
E60: UG Sec - Dir Buried | G60: 519199.7238 | K60: 519199.7238
E62: UG Sec In Duct/Svs | G62: 195210.7781 | K62: =SUM(G62,I62) -> 195210.7781
E64: Air Insulated Switchgear | G64: 156168.6224 | K64: =SUM(G64,I64) -> 156168.6224
E66: Solid Dielectric Switchgear | G66: 156168.6224 | K66: =SUM(G66,I66) -> 156168.6224
C68: Total System Access | G68: =SUM(G42,G44,G46,G48,G50,G52,G54,G56,G58,G60,G62,G64,G66) -> 19258765.24 | I68: =SUM(I42,I44,I46,I48,I50,I52,I54,I56,I58,I60) -> 0 | K68: =SUM(K42,K44,K46,K48,K50,K52,K54,K56,K58,K60,K62,K64,K66) -> 19258765.24
E70: =E40 -> Asset Type
C71: SYSTEM RENEWAL | G71: =G41 -> Audited Actual | I71: =I41 -> 
K72: =SUM(G72,I72) -> 0
K74: =SUM(G74,I74) -> 0
K76: =SUM(G76,I76) -> 0
K78: =SUM(G78,I78) -> 0
K80: =SUM(G80,I80) -> 0
K82: =SUM(G82,I82) -> 0
K84: =SUM(G84,I84) -> 0
K86: =SUM(G86,I86) -> 0
K88: =SUM(G88,I88) -> 0
K90: 0
C92: Total System Renewal | G92: =SUM(G72,G74,G76,G78,G80,G82,G84,G86,G88,G90) -> 0 | I92: =SUM(I72,I74,I76,I78,I80,I82,I84,I86,I88,I90) -> 0 | K92: =SUM(K72,K74,K76,K78,K80,K82,K84,K86,K88,K90) -> 0
E94: =E70 -> Asset Type
C95: SYSTEM SERVICE | G95: =G71 -> Audited Actual | I95: =I71 -> 
K96: =SUM(G96,I96) -> 0
K98: =SUM(G98,I98) -> 0
K100: =SUM(G100,I100) -> 0
K102: =SUM(G102,I102) -> 0
K104: =SUM(G104,I104) -> 0
K106: =SUM(G106,I106) -> 0
K108: =SUM(G108,I108) -> 0
K110: =SUM(G110,I110) -> 0
K112: =SUM(G112,I112) -> 0
K114: 0
C116: Total System Service | G116: =SUM(G96,G98,G100,G102,G104,G106,G108,G110,G112,G114) -> 0 | I116: =SUM(I96,I98,I100,I102,I104,I106,I108,I110,I112,I114) -> 0 | K116: =SUM(K96,K98,K100,K102,K104,K106,K108,K110,K112,K114) -> 0
E118: =E94 -> Asset Type
C119: GENERAL PLANT | G119: Audited Actual | I119: =I95 -> 
K121: =SUM(G121,I121) -> 0
K123: =SUM(G123,I123) -> 0
K125: =SUM(G125,I125) -> 0
K127: =SUM(G127,I127) -> 0
K129: =SUM(G129,I129) -> 0
K131: =SUM(G131,I131) -> 0
K133: =SUM(G133,I133) -> 0
K135: =SUM(G135,I135) -> 0
K137: =SUM(G137,I137) -> 0
K139: 0
C141: Total General Plant | G141: =SUM(G121,G123,G125,G127,G129,G131,G133,G135,G137,G139) -> 0 | I141: =SUM(I121,I123,I125,I127,I129,I131,I133,I135,I137,I139) -> 0 | K141: =SUM(K121,K123,K125,K127,K129,K131,K133,K135,K137,K139) -> 0
E143: =E118 -> Asset Type
G144: Audited Actual | I144: =I119 -> 
K146: =SUM(G146,I146) -> 0
K148: =SUM(G148,I148) -> 0
K150: =SUM(G150,I150) -> 0
K152: =SUM(G152,I152) -> 0
K154: =SUM(G154,I154) -> 0
K156: =SUM(G156,I156) -> 0
K158: =SUM(G158,I158) -> 0
K160: =SUM(G160,I160) -> 0
K162: =SUM(G162,I162) -> 0
K164: 0
C166: Total | G166: =SUM(G146,G148,G150,G152,G154,G156,G158,G160,G162,G164) -> 0 | I166: =SUM(I146,I148,I150,I152,I154,I156,I158,I160,I162,I164) -> 0 | K166: =SUM(K146,K148,K150,K152,K154,K156,K158,K160,K162,K164) -> 0
C168: Total Capital Costs Related to Incremental Capital Projects (ICP) | G168: =G166+G141+G116+G92+G68 -> 19258765.24 | I168: =SUM(I68,I92,I116,I141,I166) -> 0 | K168: =SUM(K68,K92,K116,K141,K166) -> 19258765.24
E170: =E143 -> Asset Type
C171: OTHER CAPITAL COST | G171: Audited Actual | I171: =I144 -> 
C173: A | K173: =SUM(G173,I173) -> 0
C175: B | K175: =SUM(G175,I175) -> 0
C177: C | K177: =SUM(G177,I177) -> 0
C179: Total Other Capital Costs | G179: =SUM(G173,G175,G177) -> 0 | I179: =SUM(I173,I175,I177) -> 0 | K179: =SUM(K173,K175,K177) -> 0
C181: Total ICM Capital Costs | G181: =G168+G179 -> 19258765.24 | I181: =I168+I179 -> 0 | K181: =K168+K179 -> 19258765.24
B184: 2 | C184: Aggregated ICM Costs by Category
C186: Asset Account | D186: Capital | E186: Account
C188: 120227 | D188: OH Swtch & Cpctrs | E188: 1835 | G188: =SUMIF($E$42:$E$177,$D188,G$42:G$177) -> 1557599.171 | I188: =SUMIF($E$42:$E$177,$D188,I$42:I$177) -> 0 | K188: =SUM(G188:J188) -> 1557599.171
C190: 120223 | D190: Concrete Poles | E190: 1830 | G190: =SUMIF($E$42:$E$177,$D190,G$42:G$177) -> 9520855.362 | I190: =SUMIF($E$42:$E$177,$D190,I$42:I$177) -> 0 | K190: =SUM(G190:J190) -> 9520855.362
C192: 120221 | D192: Wood Poles | E192: 1830 | G192: =SUMIF($E$42:$E$177,$D192,G$42:G$177) -> -2193.759795 | I192: =SUMIF($E$42:$E$177,$D192,I$42:I$177) -> 0 | K192: =SUM(G192:J192) -> -2193.759795
C194: 120225 | D194: OH Transformers | E194: 1850 | G194: =SUMIF($E$42:$E$177,$D194,G$42:G$177) -> 1730665.746 | I194: =SUMIF($E$42:$E$177,$D194,I$42:I$177) -> 0 | K194: =SUM(G194:J194) -> 1730665.746
C196: 120224 | D196: OH Prim Cond & Dev | E196: 1835 | G196: =SUMIF($E$42:$E$177,$D196,G$42:G$177) -> 2595998.619 | I196: =SUMIF($E$42:$E$177,$D196,I$42:I$177) -> 0 | K196: =SUM(G196:J196) -> 2595998.619
C198: 120226 | D198: OH Sec Cond & Dev | E198: 1855 | G198: =SUMIF($E$42:$E$177,$D198,G$42:G$177) -> 865332.873 | I198: =SUMIF($E$42:$E$177,$D198,I$42:I$177) -> 0 | K198: =SUM(G198:J198) -> 865332.873
C200: 120243 | D200: UG Transformers | E200: 1850 | G200: =SUMIF($E$42:$E$177,$D200,G$42:G$177) -> 175689.7003 | I200: =SUMIF($E$42:$E$177,$D200,I$42:I$177) -> 0 | K200: =SUM(G200:J200) -> 175689.7003
C202: 120245 | D202: UG Conduit | E202: 1840 | G202: =SUMIF($E$42:$E$177,$D202,G$42:G$177) -> 488026.9451 | I202: =SUMIF($E$42:$E$177,$D202,I$42:I$177) -> 0 | K202: =SUM(G202:J202) -> 488026.9451
C204: 120241.XLPETR | D204: UG Prim XLPE TR | E204: 1845 | G204: =SUMIF($E$42:$E$177,$D204,G$42:G$177) -> 1300042.836 | I204: =SUMIF($E$42:$E$177,$D204,I$42:I$177) -> 0 | K204: =SUM(G204:J204) -> 1300042.836
C206: 120242.DB | D206: UG Sec - Dir Buried | E206: 1845 | G206: =SUMIF($E$42:$E$177,$D206,G$42:G$177) -> 519199.7238 | I206: =SUMIF($E$42:$E$177,$D206,I$42:I$177) -> 0 | K206: =SUM(G206:J206) -> 519199.7238
C208: 120242.IDSERV | D208: UG Sec In Duct/Svs | E208: 1845 | G208: =SUMIF($E$42:$E$177,$D208,G$42:G$177) -> 195210.7781 | I208: 0 | K208: 195210.7781
C210: 120248 | D210: Air Insulated Switchgear | E210: 1845 | G210: 156168.6224 | I210: 0 | K210: 156168.6224
C212: 120249 | D212: Solid Dielectric Switchgear | E212: 1845 | G212: 156168.6224 | I212: 0 | K212: 156168.6224
C214: 120244 | D214: UG Cable Injection | E214: 1845 | G214: 0 | I214: 0 | K214: =SUM(G214:J214) -> 0
C216: 120063.MS | D216: MS Integrated P&C Systems | E216: 1820 | G216: 0 | I216: 0 | K216: =SUM(G216:J216) -> 0
C218: 120021.MS | D218: MS Building Improvements | E218: 1820 | G218: 0 | I218: 0 | K218: =SUM(G218:J218) -> 0
C220: 130104 | D220: Capital Contributions Paid | E220: 1609 | G220: 0 | I220: 0 | K220: =SUM(G220:J220) -> 0
D225: Total Capital Costs | G225: =SUM(G188:G223) -> 19258765.24 | I225: =SUM(I188:I223) -> 0 | K225: =SUM(K188:K223) -> 19258765.24
G226: =IF(G225=G181," ","Error") ->  | I226: =IF(I225=I181,"","Error") ->  | K226: =IF(K225=K181,"","Error") -> 

Sheet 3. Cost_of_Service_Parameters
B17: Sheet 3: Parameters and Rates
G19: 2019 | I19: 2020 | K19: 2021 | M19: 2022 | O19: 2023 | Q19: 2024 | S19: 2025 | U19: 2026
B20: Cost of Capital
C21: Capital Structure
D22: Deemed Short-term Debt Capitalization | G22: 0.04 | I22: 0.04 | K22: 0.04 | M22: 0.04 | O22: 0.04 | Q22: 0.04 | S22: 0.04 | U22: 0.04
D23: Deemed Long-term Debt Capitalization | G23: =60%-G22 -> 0.56 | I23: =G23-(I22-G22) -> 0.56 | K23: =I23-(K22-I22) -> 0.56 | M23: =K23-(M22-K22) -> 0.56 | O23: =M23-(O22-M22) -> 0.56 | Q23: =O23-(Q22-O22) -> 0.56 | S23: =Q23-(S22-Q22) -> 0.56 | U23: =S23-(U22-S22) -> 0.56
D24: Deemed Equity Capitalization | G24: =100%-G23-G25-G22 -> 0.4 | I24: =100%-I23-I25-I22 -> 0.4 | K24: =100%-K23-K25-K22 -> 0.4 | M24: =100%-M23-M25-M22 -> 0.4 | O24: =100%-O23-O25-O22 -> 0.4 | Q24: =100%-Q23-Q25-Q22 -> 0.4 | S24: =100%-S23-S25-S22 -> 0.4 | U24: =100%-U23-U25-U22 -> 0.4
D25: Preferred Shares
C26: Total | G26: =SUM(G22:G25) -> 1 | I26: =SUM(I22:I25) -> 1 | K26: =SUM(K22:K25) -> 1 | M26: =SUM(M22:M25) -> 1 | O26: =SUM(O22:O25) -> 1 | Q26: =SUM(Q22:Q25) -> 1 | S26: =SUM(S22:S25) -> 1 | U26: =SUM(U22:U25) -> 1
C28: Cost of Capital Parameters
D29: Deemed Short-term Debt Rate | G29: 0.0176 | I29: 0.0176 | K29: 0.0176 | M29: 0.0176 | O29: 0.0176 | Q29: 0.0176 | S29: 0.0176 | U29: 0.0176
D30: Long-term Debt Rate (actual/embedded/deemed)1 | G30: 0.03882504 | I30: 0.03882504 | K30: 0.03882504 | M30: 0.03882504 | O30: 0.03882504 | Q30: 0.03882504 | S30: 0.03882504 | U30: 0.03882504
D31: Target Return on Equity (ROE) | G31: 0.0878 | I31: 0.0878 | K31: 0.0878 | M31: 0.0878 | O31: 0.0878 | Q31: 0.0878 | S31: 0.0878 | U31: 0.0878
D32: Return on Preferred Shares
C33: WACC | G33: =SUMPRODUCT(G22:G25,G29:G32) -> 0.0575660224 | I33: =SUMPRODUCT(I22:I25,I29:I32) -> 0.0575660224 | K33: =SUMPRODUCT(K22:K25,K29:K32) -> 0.0575660224 | M33: =SUMPRODUCT(M22:M25,M29:M32) -> 0.0575660224 | O33: =SUMPRODUCT(O22:O25,O29:O32) -> 0.0575660224 | Q33: =SUMPRODUCT(Q22:Q25,Q29:Q32) -> 0.0575660224 | S33: =SUMPRODUCT(S22:S25,S29:S32) -> 0.0575660224 | U33: =SUMPRODUCT(U22:U25,U29:U32) -> 0.0575660224
B35: Working Capital Allowance
C36: Working Capital Allowance Rate | G36: 0.075 | I36: 0.075 | K36: 0.075 | M36: 0.075 | O36: 0.075 | Q36: 0.075 | S36: 0.075 | U36: 0.075
C37: (% of the sum of Cost of Power + controllable expenses)
B39: Taxes/PILs
C40: Aggregate Corporate Income Tax Rate | G40: 0.265 | I40: 0.265 | K40: 0.265 | M40: 0.265 | O40: 0.265 | Q40: 0.265 | S40: 0.265 | U40: 0.265
C41: Capital Tax (until July 1st, 2010) | G41: 0 | I41: 0 | K41: 0 | M41: 0 | O41: 0 | Q41: 0 | S41: 0 | U41: 0
B43: Depreciation Rates | E43: Account
B44: (expressed as expected useful life in years)
C45: OH Swtch & Cpctrs | E45: 1835 | G45: 38 | I45: 38 | K45: 38 | M45: 38 | O45: 38 | Q45: 38 | S45: 35 | U45: 35
C46: - rate (%) | G46: 0.02631578947 | I46: 0.02631578947 | K46: 0.02631578947 | M46: 0.02631578947 | O46: 0.02631578947 | Q46: 0.02631578947 | S46: 0.02857142857 | U46: 0.02857142857
C47: Concrete Poles | E47: 1830 | G47: 51 | I47: 51 | K47: 51 | M47: 51 | O47: 51 | Q47: 51 | S47: 60 | U47: 60
C48: - rate (%) | G48: 0.01960784314 | I48: 0.01960784314 | K48: 0.01960784314 | M48: 0.01960784314 | O48: 0.01960784314 | Q48: 0.01960784314 | S48: 0.01666666667 | U48: 0.01666666667
C49: Wood Poles | E49: 1830 | G49: 44 | I49: 44 | K49: 44 | M49: 44 | O49: 44 | Q49: 44 | S49: 45 | U49: 45
C50: - rate (%) | G50: 0.02272727273 | I50: 0.02272727273 | K50: 0.02272727273 | M50: 0.02272727273 | O50: 0.02272727273 | Q50: 0.02272727273 | S50: 0.02222222222 | U50: 0.02222222222
C51: OH Transformers | E51: 1850 | G51: 41 | I51: 41 | K51: 41 | M51: 41 | O51: 41 | Q51: 41 | S51: 45 | U51: 45
C52: - rate (%) | G52: 0.0243902439 | I52: 0.0243902439 | K52: 0.0243902439 | M52: 0.0243902439 | O52: 0.0243902439 | Q52: 0.0243902439 | S52: 0.02222222222 | U52: 0.02222222222
C53: OH Prim Cond & Dev | E53: 1835 | G53: 45 | I53: 45 | K53: 45 | M53: 45 | O53: 45 | Q53: 45 | S53: 50 | U53: 50
C54: - rate (%) | G54: 0.02222222222 | I54: 0.02222222222 | K54: 0.02222222222 | M54: 0.02222222222 | O54: 0.02222222222 | Q54: 0.02222222222 | S54: 0.02 | U54: 0.02
C55: OH Sec Cond & Dev | E55: 1855 | G55: 48 | I55: 48 | K55: 48 | M55: 48 | O55: 48 | Q55: 48 | S55: 50 | U55: 50
C56: - rate (%) | G56: 0.02083333333 | I56: 0.02083333333 | K56: 0.02083333333 | M56: 0.02083333333 | O56: 0.02083333333 | Q56: 0.02083333333 | S56: 0.02 | U56: 0.02
C57: UG Transformers | E57: 1850 | G57: 32 | I57: 32 | K57: 32 | M57: 32 | O57: 32 | Q57: 32 | S57: 30 | U57: 30
C58: - rate (%) | G58: 0.03125 | I58: 0.03125 | K58: 0.03125 | M58: 0.03125 | O58: 0.03125 | Q58: 0.03125 | S58: 0.03333333333 | U58: 0.03333333333
C59: UG Conduit | E59: 1840 | G59: 52 | I59: 52 | K59: 52 | M59: 52 | O59: 52 | Q59: 52 | S59: 60 | U59: 60
C60: - rate (%) | G60: 0.01923076923 | I60: 0.01923076923 | K60: 0.01923076923 | M60: 0.01923076923 | O60: 0.01923076923 | Q60: 0.01923076923 | S60: 0.01666666667 | U60: 0.01666666667
C61: UG Prim XLPE TR | E61: 1845 | G61: 38 | I61: 38 | K61: 38 | M61: 38 | O61: 38 | Q61: 38 | S61: 45 | U61: 45
C62: - rate (%) | G62: 0.02631578947 | I62: 0.02631578947 | K62: 0.02631578947 | M62: 0.02631578947 | O62: 0.02631578947 | Q62: 0.02631578947 | S62: 0.02222222222 | U62: 0.02222222222
C63: UG Sec - Dir Buried | E63: 1845 | G63: 31 | I63: 31 | K63: 31 | M63: 31 | O63: 31 | Q63: 31 | S63: 30 | U63: 30
C64: - rate (%) | G64: 0.03225806452 | I64: 0.03225806452 | K64: 0.03225806452 | M64: 0.03225806452 | O64: 0.03225806452 | Q64: 0.03225806452 | S64: 0.03333333333 | U64: 0.03333333333
C65: UG Sec In Duct/Svs | E65: 1845 | G65: 37 | I65: 37 | K65: 37 | M65: 37 | O65: 37 | Q65: 37 | S65: 40 | U65: 40
C66: - rate (%) | G66: 0.02702702703 | I66: 0.02702702703 | K66: 0.02702702703 | M66: 0.02702702703 | O66: 0.02702702703 | Q66: 0.02702702703 | S66: 0.025 | U66: 0.025
C67: Air Insulated Switchgear | E67: 1845 | G67: 39 | I67: 39 | K67: 39 | M67: 39 | O67: 39 | Q67: 39 | S67: 35 | U67: 35
C68: - rate (%) | G68: 0.02564102564 | I68: 0.02564102564 | K68: 0.02564102564 | M68: 0.02564102564 | O68: 0.02564102564 | Q68: 0.02564102564 | S68: 0.02857142857 | U68: 0.02857142857
C69: Solid Dielectric Switchgear | E69: 1845 | G69: 42 | I69: 42 | K69: 42 | M69: 42 | O69: 42 | Q69: 42 | S69: 45 | U69: 45
C70: - rate (%) | G70: 0.02380952381 | I70: 0.02380952381 | K70: 0.02380952381 | M70: 0.02380952381 | O70: 0.02380952381 | Q70: 0.02380952381 | S70: 0.02222222222 | U70: 0.02222222222
C71: UG Cable Injection | E71: 1845 | G71: 24 | I71: 24 | K71: 24 | M71: 24 | O71: 24 | Q71: 24 | S71: 20 | U71: 20
C72: - rate (%) | G72: 0.04166666667 | I72: 0.04166666667 | K72: 0.04166666667 | M72: 0.04166666667 | O72: 0.04166666667 | Q72: 0.04166666667 | S72: 0.05 | U72: 0.05
C73: MS Integrated P&C Systems | E73: 1820 | G73: 36 | I73: 36 | K73: 36 | M73: 36 | O73: 36 | Q73: 36 | S73: 15 | U73: 15
C74: - rate (%) | G74: 0.02777777778 | I74: 0.02777777778 | K74: 0.02777777778 | M74: 0.02777777778 | O74: 0.02777777778 | Q74: 0.02777777778 | S74: 0.06666666667 | U74: 0.06666666667
C75: MS Building Improvements | E75: 1820 | G75: 21 | I75: 21 | K75: 21 | M75: 21 | O75: 21 | Q75: 21 | S75: 25 | U75: 25
C76: - rate (%) | G76: 0.04761904762 | I76: 0.04761904762 | K76: 0.04761904762 | M76: 0.04761904762 | O76: 0.04761904762 | Q76: 0.04761904762 | S76: 0.04 | U76: 0.04
C77: Capital Contributions Paid | E77: 1609 | G77: 40 | I77: 40 | K77: 40 | M77: 40 | O77: 40 | Q77: 40 | S77: 40 | U77: 40
C78: - rate (%) | G78: 0.025 | I78: 0.025 | K78: 0.025 | M78: 0.025 | O78: 0.025 | Q78: 0.025 | S78: 0.025 | U78: 0.025
B82: CCA Rates
C83: OH Swtch & Cpctrs - CCA Class | G83: 47 | I83: 47 | K83: 47 | M83: 47 | O83: 47 | Q83: 47 | S83: 47 | U83: 47
C84: OH Swtch & Cpctrs - CCA Rate | G84: 0.08 | I84: 0.08 | K84: 0.08 | M84: 0.08 | O84: 0.08 | Q84: 0.08 | S84: 0.08 | U84: 0.08
C86: Concrete Poles - CCA Class | G86: 47 | I86: 47 | K86: 47 | M86: 47 | O86: 47 | Q86: 47 | S86: 47 | U86: 47
C87: Concrete Poles - CCA Rate | G87: 0.08 | I87: 0.08 | K87: 0.08 | M87: 0.08 | O87: 0.08 | Q87: 0.08 | S87: 0.08 | U87: 0.08
C89: Wood Poles - CCA Class | G89: 47 | I89: 47 | K89: 47 | M89: 47 | O89: 47 | Q89: 47 | S89: 47 | U89: 47
C90: Wood Poles - CCA Rate | G90: 0.08 | I90: 0.08 | K90: 0.08 | M90: 0.08 | O90: 0.08 | Q90: 0.08 | S90: 0.08 | U90: 0.08
C92: OH Transformers - CCA Class | G92: 47 | I92: 47 | K92: 47 | M92: 47 | O92: 47 | Q92: 47 | S92: 47 | U92: 47
C93: OH Transformers - CCA Rate | G93: 0.08 | I93: 0.08 | K93: 0.08 | M93: 0.08 | O93: 0.08 | Q93: 0.08 | S93: 0.08 | U93: 0.08
C95: OH Prim Cond & Dev - CCA Class | G95: 47 | I95: 47 | K95: 47 | M95: 47 | O95: 47 | Q95: 47 | S95: 47 | U95: 47
C96: OH Prim Cond & Dev - CCA Rate | G96: 0.08 | I96: 0.08 | K96: 0.08 | M96: 0.08 | O96: 0.08 | Q96: 0.08 | S96: 0.08 | U96: 0.08
C98: OH Sec Cond & Dev - CCA Class | G98: 47 | I98: 47 | K98: 47 | M98: 47 | O98: 47 | Q98: 47 | S98: 47 | U98: 47
C99: OH Sec Cond & Dev - CCA Rate | G99: 0.08 | I99: 0.08 | K99: 0.08 | M99: 0.08 | O99: 0.08 | Q99: 0.08 | S99: 0.08 | U99: 0.08
C101: UG Transformers - CCA Class | G101: 47 | I101: 47 | K101: 47 | M101: 47 | O101: 47 | Q101: 47 | S101: 47 | U101: 47
C102: UG Transformers - CCA Rate | G102: 0.08 | I102: 0.08 | K102: 0.08 | M102: 0.08 | O102: 0.08 | Q102: 0.08 | S102: 0.08 | U102: 0.08
C104: OH Services - CCA Class | G104: 47 | I104: 47 | K104: 47 | M104: 47 | O104: 47 | Q104: 47 | S104: 47 | U104: 47
C105: OH Services - CCA Rate | G105: 0.08 | I105: 0.08 | K105: 0.08 | M105: 0.08 | O105: 0.08 | Q105: 0.08 | S105: 0.08 | U105: 0.08
C107: UG Conduit - CCA Class | G107: 47 | I107: 47 | K107: 47 | M107: 47 | O107: 47 | Q107: 47 | S107: 47 | U107: 47
C108: UG Conduit - CCA Rate | G108: 0.08 | I108: 0.08 | K108: 0.08 | M108: 0.08 | O108: 0.08 | Q108: 0.08 | S108: 0.08 | U108: 0.08
C110: UG Prim XLPE TR - CCA Class | G110: 47 | I110: 47 | K110: 47 | M110: 47 | O110: 47 | Q110: 47 | S110: 47 | U110: 47
C111: UG Prim XLPE TR - CCA Rate | G111: 0.08 | I111: 0.08 | K111: 0.08 | M111: 0.08 | O111: 0.08 | Q111: 0.08 | S111: 0.08 | U111: 0.08
C113: UG Sec - Dir Buried - CCA Class | G113: 47 | I113: 47 | K113: 47 | M113: 47 | O113: 47 | Q113: 47 | S113: 47 | U113: 47
C114: UG Sec - Dir Buried - CCA Rate | G114: 0.08 | I114: 0.08 | K114: 0.08 | M114: 0.08 | O114: 0.08 | Q114: 0.08 | S114: 0.08 | U114: 0.08
C116: UG Sec In Duct/Svs - CCA Class | G116: 47 | I116: 47 | K116: 47 | M116: 47 | O116: 47 | Q116: 47 | S116: 47 | U116: 47
C117: UG Sec In Duct/Svs - CCA Rate | G117: 0.08 | I117: 0.08 | K117: 0.08 | M117: 0.08 | O117: 0.08 | Q117: 0.08 | S117: 0.08 | U117: 0.08
C119: Air Insulated Switchgear - CCA Class | G119: 47 | I119: 47 | K119: 47 | M119: 47 | O119: 47 | Q119: 47 | S119: 47 | U119: 47
C120: Air Insulated Switchgear - CCA Rate | G120: 0.08 | I120: 0.08 | K120: 0.08 | M120: 0.08 | O120: 0.08 | Q120: 0.08 | S120: 0.08 | U120: 0.08
C122: Solid Dielectric Switchgear - CCA Class | G122: 47 | I122: 47 | K122: 47 | M122: 47 | O122: 47 | Q122: 47 | S122: 47 | U122: 47
C123: Solid Dielectric Switchgear - CCA Rate | G123: 0.08 | I123: 0.08 | K123: 0.08 | M123: 0.08 | O123: 0.08 | Q123: 0.08 | S123: 0.08 | U123: 0.08
C125: UG Cable Injection - CCA Class | G125: 47 | I125: 47 | K125: 47 | M125: 47 | O125: 47 | Q125: 47 | S125: 47 | U125: 47
C126: UG Cable Injection - CCA Rate | G126: 0.08 | I126: 0.08 | K126: 0.08 | M126: 0.08 | O126: 0.08 | Q126: 0.08 | S126: 0.08 | U126: 0.08
C128: MS Integrated P&C Systems - CCA Class | G128: 47 | I128: 47 | K128: 47 | M128: 47 | O128: 47 | Q128: 47 | S128: 47 | U128: 47
C129: MS Integrated P&C Systems - CCA Rate | G129: 0.08 | I129: 0.08 | K129: 0.08 | M129: 0.08 | O129: 0.08 | Q129: 0.08 | S129: 0.08 | U129: 0.08
C131: MS Building Improvements - CCA Class | G131: 1 | I131: 1 | K131: 1 | M131: 1 | O131: 1 | Q131: 1 | S131: 1 | U131: 1
C132: MS Building Improvements - CCA Rate | G132: 0.04 | I132: 0.04 | K132: 0.04 | M132: 0.04 | O132: 0.04 | Q132: 0.04 | S132: 0.04 | U132: 0.04
C134: Capital Contributions Paid - CCA Class | G134: 47 | I134: 47 | K134: 47 | M134: 47 | O134: 47 | Q134: 47 | S134: 47 | U134: 47
C135: Capital Contributions Paid - CCA Rate | G135: 0.08 | I135: 0.08 | K135: 0.08 | M135: 0.08 | O135: 0.08 | Q135: 0.08 | S135: 0.08 | U135: 0.08
B138: Assumptions
B139: 1 | C139: Fiscal calendar year (January 1 to December 31) used.
B140: 3 | C140: Amortization is done on a striaght line basis and no "half-year" rule applied.

Sheet 4. ICM_Assets_and_Rate_Base
B17: Sheet 4: ICM Assets - Net Book Value
I18: ='3. Cost_of_Service_Parameters'!G19 -> 2019 | K18: 2020 | M18: 2021 | O18: 2022 | Q18: 2023 | S18: 2024 | U18: 2025 | W18: 2026
B19: Net Fixed Assets - OH Swtch & Cpctrs
C21: Gross Book Value
D22: Opening Balance | K22: =I25 -> 1557599.171 | M22: =K25 -> 1557599.171 | O22: =M25 -> 1557599.171 | Q22: =O25 -> 1557599.171 | S22: =Q25 -> 1557599.171 | U22: =S25 -> 1557599.171 | W22: =U25 -> 1557599.171
D23: Capital Additions during year (from ICM Costs) | I23: ='2. ICM_Costs'!G188 -> 1557599.171 | K23: ='2. ICM_Costs'!I182 -> 0
D24: Retirements/Removals (if applicable)
D25: Closing Balance | I25: =I22+I23-I24 -> 1557599.171 | K25: =K22+K23-K24 -> 1557599.171 | M25: =M22+M23-M24 -> 1557599.171 | O25: =O22+O23-O24 -> 1557599.171 | Q25: =Q22+Q23-Q24 -> 1557599.171 | S25: =S22+S23-S24 -> 1557599.171 | U25: =U22+U23-U24 -> 1557599.171 | W25: =W22+W23-W24 -> 1557599.171
C27: Accumulated Depreciation
D28: Opening Balance | K28: =I31 -> -40989.45188 | M28: =K31 -> -81978.90376 | O28: =M31 -> -122968.3556 | Q28: =O31 -> -163957.8075 | S28: =Q31 -> -204947.2594 | U28: =S31 -> -245936.7113 | W28: =U31 -> -290439.5447
D29: Amortization expense during year | I29: =IF(ISERROR(-(I23/('3. Cost_of_Service_Parameters'!G45)+MIN((I22/'3. Cost_of_Service_Parameters'!G45),(I22+I28)))), 0, -(I23/('3. Cost_of_Service_Parameters'!G45)+MIN((I22/'3. Cost_of_Service_Parameters'!G45),(I22+I28)))) -> -40989.45188 | K29: =IF(ISERROR(-(K23/('3. Cost_of_Service_Parameters'!I45)+MIN((K22/'3. Cost_of_Service_Parameters'!I45),(K22+K28)))), 0, -(K23/('3. Cost_of_Service_Parameters'!I45)+MIN((K22/'3. Cost_of_Service_Parameters'!I45),(K22+K28)))) -> -40989.45188 | M29: =IF(ISERROR(-(M23/('3. Cost_of_Service_Parameters'!K45)+MIN((M22/'3. Cost_of_Service_Parameters'!K45),(M22+M28)))), 0, -(M23/('3. Cost_of_Service_Parameters'!K45)+MIN((M22/'3. Cost_of_Service_Parameters'!K45),(M22+M28)))) -> -40989.45188 | O29: =IF(ISERROR(-(O23/('3. Cost_of_Service_Parameters'!M45)+MIN((O22/'3. Cost_of_Service_Parameters'!M45),(O22+O28)))), 0, -(O23/('3. Cost_of_Service_Parameters'!M45)+MIN((O22/'3. Cost_of_Service_Parameters'!M45),(O22+O28)))) -> -40989.45188 | Q29: =IF(ISERROR(-(Q23/('3. Cost_of_Service_Parameters'!O45)+MIN((Q22/'3. Cost_of_Service_Parameters'!O45),(Q22+Q28)))), 0, -(Q23/('3. Cost_of_Service_Parameters'!O45)+MIN((Q22/'3. Cost_of_Service_Parameters'!O45),(Q22+Q28)))) -> -40989.45188 | S29: =IF(ISERROR(-(S23/('3. Cost_of_Service_Parameters'!Q45)+MIN((S22/'3. Cost_of_Service_Parameters'!Q45),(S22+S28)))), 0, -(S23/('3. Cost_of_Service_Parameters'!Q45)+MIN((S22/'3. Cost_of_Service_Parameters'!Q45),(S22+S28)))) -> -40989.45188 | U29: =IF(ISERROR(-(U23/('3. Cost_of_Service_Parameters'!S45)+MIN((U22/'3. Cost_of_Service_Parameters'!S45),(U22+U28)))), 0, -(U23/('3. Cost_of_Service_Parameters'!S45)+MIN((U22/'3. Cost_of_Service_Parameters'!S45),(U22+U28)))) -> -44502.83347 | W29: =IF(ISERROR(-(W23/('3. Cost_of_Service_Parameters'!U45)+MIN((W22/'3. Cost_of_Service_Parameters'!U45),(W22+W28)))), 0, -(W23/('3. Cost_of_Service_Parameters'!U45)+MIN((W22/'3. Cost_of_Service_Parameters'!U45),(W22+W28)))) -> -44502.83347
D30: Retirements/Removals (if applicable)
D31: Closing Balance | I31: =I28+I29-I30 -> -40989.45188 | K31: =K28+K29-K30 -> -81978.90376 | M31: =M28+M29-M30 -> -122968.3556 | O31: =O28+O29-O30 -> -163957.8075 | Q31: =Q28+Q29-Q30 -> -204947.2594 | S31: =S28+S29-S30 -> -245936.7113 | U31: =U28+U29-U30 -> -290439.5447 | W31: =W28+W29-W30 -> -334942.3782
C33: Net Book Value
D34: Opening Balance | I34: =I22+I28 -> 0 | K34: =I35 -> 1516609.719 | M34: =K35 -> 1475620.268 | O34: =M35 -> 1434630.816 | Q34: =O35 -> 1393641.364 | S34: =Q35 -> 1352651.912 | U34: =S35 -> 1311662.46 | W34: =U35 -> 1267159.627
D35: Closing Balance | I35: =I25+I31 -> 1516609.719 | K35: =K25+K31 -> 1475620.268 | M35: =M25+M31 -> 1434630.816 | O35: =O25+O31 -> 1393641.364 | Q35: =Q25+Q31 -> 1352651.912 | S35: =S25+S31 -> 1311662.46 | U35: =U25+U31 -> 1267159.627 | W35: =W25+W31 -> 1222656.793
D36: Incremental CAPEX | I36: =I35 -> 1516609.719 | K36: =AVERAGE(K34:K35) -> 1496114.994 | M36: =AVERAGE(M34:M35) -> 1455125.542 | O36: =AVERAGE(O34:O35) -> 1414136.09 | Q36: =AVERAGE(Q34:Q35) -> 1373146.638 | S36: =AVERAGE(S34:S35) -> 1332157.186 | U36: =AVERAGE(U34:U35) -> 1289411.043 | W36: =AVERAGE(W34:W35) -> 1244908.21
B38: Net Fixed Assets - Concrete Poles
C40: Gross Book Value
D41: Opening Balance | K41: =I44 -> 9520855.362 | M41: =K44 -> 9520855.362 | O41: =M44 -> 9520855.362 | Q41: =O44 -> 9520855.362 | S41: =Q44 -> 9520855.362 | U41: =S44 -> 9520855.362 | W41: =U44 -> 9520855.362
D42: Capital Additions during year (from ICM Costs) | I42: ='2. ICM_Costs'!G190 -> 9520855.362 | K42: ='2. ICM_Costs'!I184 -> 0
D43: Retirements/Removals (if applicable)
D44: Closing Balance | I44: =I41+I42-I43 -> 9520855.362 | K44: =K41+K42-K43 -> 9520855.362 | M44: =M41+M42-M43 -> 9520855.362 | O44: =O41+O42-O43 -> 9520855.362 | Q44: =Q41+Q42-Q43 -> 9520855.362 | S44: =S41+S42-S43 -> 9520855.362 | U44: =U41+U42-U43 -> 9520855.362 | W44: =W41+W42-W43 -> 9520855.362
C46: Accumulated Depreciation
D47: Opening Balance | K47: =I50 -> -186683.4385 | M47: =K50 -> -373366.877 | O47: =M50 -> -560050.3154 | Q47: =O50 -> -746733.7539 | S47: =Q50 -> -933417.1924 | U47: =S50 -> -1120100.631 | W47: =U50 -> -1278781.554
D48: Amortization expense during year | I48: =IF(ISERROR(-(I42/('3. Cost_of_Service_Parameters'!G47)+MIN((I41/'3. Cost_of_Service_Parameters'!G47),(I41+I47)))), 0, -(I42/('3. Cost_of_Service_Parameters'!G47)+MIN((I41/'3. Cost_of_Service_Parameters'!G47),(I41+I47)))) -> -186683.4385 | K48: =IF(ISERROR(-(K42/('3. Cost_of_Service_Parameters'!I47*2)+MIN((K41/'3. Cost_of_Service_Parameters'!I47),(K41+K47)))), 0, -(K42/('3. Cost_of_Service_Parameters'!I47*2)+MIN((K41/'3. Cost_of_Service_Parameters'!I47),(K41+K47)))) -> -186683.4385 | M48: =IF(ISERROR(-(M42/('3. Cost_of_Service_Parameters'!K47*2)+MIN((M41/'3. Cost_of_Service_Parameters'!K47),(M41+M47)))), 0, -(M42/('3. Cost_of_Service_Parameters'!K47*2)+MIN((M41/'3. Cost_of_Service_Parameters'!K47),(M41+M47)))) -> -186683.4385 | O48: =IF(ISERROR(-(O42/('3. Cost_of_Service_Parameters'!M47*2)+MIN((O41/'3. Cost_of_Service_Parameters'!M47),(O41+O47)))), 0, -(O42/('3. Cost_of_Service_Parameters'!M47*2)+MIN((O41/'3. Cost_of_Service_Parameters'!M47),(O41+O47)))) -> -186683.4385 | Q48: =IF(ISERROR(-(Q42/('3. Cost_of_Service_Parameters'!O47*2)+MIN((Q41/'3. Cost_of_Service_Parameters'!O47),(Q41+Q47)))), 0, -(Q42/('3. Cost_of_Service_Parameters'!O47*2)+MIN((Q41/'3. Cost_of_Service_Parameters'!O47),(Q41+Q47)))) -> -186683.4385 | S48: =IF(ISERROR(-(S42/('3. Cost_of_Service_Parameters'!Q47*2)+MIN((S41/'3. Cost_of_Service_Parameters'!Q47),(S41+S47)))), 0, -(S42/('3. Cost_of_Service_Parameters'!Q47*2)+MIN((S41/'3. Cost_of_Service_Parameters'!Q47),(S41+S47)))) -> -186683.4385 | U48: =IF(ISERROR(-(U42/('3. Cost_of_Service_Parameters'!S47*2)+MIN((U41/'3. Cost_of_Service_Parameters'!S47),(U41+U47)))), 0, -(U42/('3. Cost_of_Service_Parameters'!S47*2)+MIN((U41/'3. Cost_of_Service_Parameters'!S47),(U41+U47)))) -> -158680.9227 | W48: =IF(ISERROR(-(W42/('3. Cost_of_Service_Parameters'!U47*2)+MIN((W41/'3. Cost_of_Service_Parameters'!U47),(W41+W47)))), 0, -(W42/('3. Cost_of_Service_Parameters'!U47*2)+MIN((W41/'3. Cost_of_Service_Parameters'!U47),(W41+W47)))) -> -158680.9227
D49: Retirements/Removals (if applicable)
D50: Closing Balance | I50: =I47+I48-I49 -> -186683.4385 | K50: =K47+K48-K49 -> -373366.877 | M50: =M47+M48-M49 -> -560050.3154 | O50: =O47+O48-O49 -> -746733.7539 | Q50: =Q47+Q48-Q49 -> -933417.1924 | S50: =S47+S48-S49 -> -1120100.631 | U50: =U47+U48-U49 -> -1278781.554 | W50: =W47+W48-W49 -> -1437462.476
C52: Net Book Value
D53: Opening Balance | I53: =I41+I47 -> 0 | K53: =I54 -> 9334171.924 | M53: =K54 -> 9147488.486 | O53: =M54 -> 8960805.047 | Q53: =O54 -> 8774121.609 | S53: =Q54 -> 8587438.17 | U53: =S54 -> 8400754.732 | W53: =U54 -> 8242073.809
D54: Closing Balance | I54: =I44+I50 -> 9334171.924 | K54: =K44+K50 -> 9147488.486 | M54: =M44+M50 -> 8960805.047 | O54: =O44+O50 -> 8774121.609 | Q54: =Q44+Q50 -> 8587438.17 | S54: =S44+S50 -> 8400754.732 | U54: =U44+U50 -> 8242073.809 | W54: =W44+W50 -> 8083392.886
D55: Incremental CAPEX | I55: =I54 -> 9334171.924 | K55: =AVERAGE(K53:K54) -> 9240830.205 | M55: =AVERAGE(M53:M54) -> 9054146.766 | O55: =AVERAGE(O53:O54) -> 8867463.328 | Q55: =AVERAGE(Q53:Q54) -> 8680779.889 | S55: =AVERAGE(S53:S54) -> 8494096.451 | U55: =AVERAGE(U53:U54) -> 8321414.27 | W55: =AVERAGE(W53:W54) -> 8162733.348
B57: Net Fixed Assets - Wood Poles
C59: Gross Book Value
D60: Opening Balance | K60: =I63 -> -2193.759795 | M60: =K63 -> -2193.759795 | O60: =M63 -> -2193.759795 | Q60: =O63 -> -2193.759795 | S60: =Q63 -> -2193.759795 | U60: =S63 -> -2193.759795 | W60: =U63 -> -2193.759795
D61: Capital Additions during year (from ICM Costs) | I61: ='2. ICM_Costs'!G192 -> -2193.759795
D62: Retirements/Removals (if applicable)
D63: Closing Balance | I63: =I60+I61-I62 -> -2193.759795 | K63: =K60+K61-K62 -> -2193.759795 | M63: =M60+M61-M62 -> -2193.759795 | O63: =O60+O61-O62 -> -2193.759795 | Q63: =Q60+Q61-Q62 -> -2193.759795 | S63: =S60+S61-S62 -> -2193.759795 | U63: =U60+U61-U62 -> -2193.759795 | W63: =W60+W61-W62 -> -2193.759795
C65: Accumulated Depreciation
D66: Opening Balance | K66: =I69 -> 49.85817717 | M66: =K69 -> 99.71635434 | O66: =M69 -> 149.5745315 | Q66: =O69 -> 199.4327087 | S66: =Q69 -> 249.2908858 | U66: =S69 -> 299.149063 | W66: =U69 -> 347.8992807
D67: Amortization expense during year | I67: =IF(ISERROR(-(I61/('3. Cost_of_Service_Parameters'!G49)+MIN((I60/'3. Cost_of_Service_Parameters'!G49),(I60+I66)))), 0, -(I61/('3. Cost_of_Service_Parameters'!G49)+MIN((I60/'3. Cost_of_Service_Parameters'!G49),(I60+I66)))) -> 49.85817717 | K67: =-I61/'3. Cost_of_Service_Parameters'!I49 -> 49.85817717 | M67: =-K60/'3. Cost_of_Service_Parameters'!K49 -> 49.85817717 | O67: =-M60/'3. Cost_of_Service_Parameters'!M49 -> 49.85817717 | Q67: =-O60/'3. Cost_of_Service_Parameters'!O49 -> 49.85817717 | S67: =-Q60/'3. Cost_of_Service_Parameters'!Q49 -> 49.85817717 | U67: =-S60/'3. Cost_of_Service_Parameters'!S49 -> 48.75021768 | W67: =-U60/'3. Cost_of_Service_Parameters'!U49 -> 48.75021768
D68: Retirements/Removals (if applicable)
D69: Closing Balance | I69: =I66+I67-I68 -> 49.85817717 | K69: =K66+K67-K68 -> 99.71635434 | M69: =M66+M67-M68 -> 149.5745315 | O69: =O66+O67-O68 -> 199.4327087 | Q69: =Q66+Q67-Q68 -> 249.2908858 | S69: =S66+S67-S68 -> 299.149063 | U69: =U66+U67-U68 -> 347.8992807 | W69: =W66+W67-W68 -> 396.6494984
C71: Net Book Value
D72: Opening Balance | I72: =I60+I66 -> 0 | K72: =I73 -> -2143.901618 | M72: =K73 -> -2094.043441 | O72: =M73 -> -2044.185264 | Q72: =O73 -> -1994.327087 | S72: =Q73 -> -1944.46891 | U72: =S73 -> -1894.610732 | W72: =U73 -> -1845.860515
D73: Closing Balance | I73: =I63+I69 -> -2143.901618 | K73: =K63+K69 -> -2094.043441 | M73: =M63+M69 -> -2044.185264 | O73: =O63+O69 -> -1994.327087 | Q73: =Q63+Q69 -> -1944.46891 | S73: =S63+S69 -> -1894.610732 | U73: =U63+U69 -> -1845.860515 | W73: =W63+W69 -> -1797.110297
D74: Incremental CAPEX | I74: =I73 -> -2143.901618 | K74: =AVERAGE(K72:K73) -> -2118.97253 | M74: =AVERAGE(M72:M73) -> -2069.114353 | O74: =AVERAGE(O72:O73) -> -2019.256175 | Q74: =AVERAGE(Q72:Q73) -> -1969.397998 | S74: =AVERAGE(S72:S73) -> -1919.539821 | U74: =AVERAGE(U72:U73) -> -1870.235624 | W74: =AVERAGE(W72:W73) -> -1821.485406
B76: Net Fixed Assets - OH Transformers
C78: Gross Book Value
D79: Opening Balance | K79: =I82 -> 1730665.746 | M79: =K82 -> 1730665.746 | O79: =M82 -> 1730665.746 | Q79: =O82 -> 1730665.746 | S79: =Q82 -> 1730665.746 | U79: =S82 -> 1730665.746 | W79: =U82 -> 1730665.746
D80: Capital Additions during year (from ICM Costs) | I80: ='2. ICM_Costs'!G194 -> 1730665.746
D81: Retirements/Removals (if applicable)
D82: Closing Balance | I82: =I79+I80-I81 -> 1730665.746 | K82: =K79+K80-K81 -> 1730665.746 | M82: =M79+M80-M81 -> 1730665.746 | O82: =O79+O80-O81 -> 1730665.746 | Q82: =Q79+Q80-Q81 -> 1730665.746 | S82: =S79+S80-S81 -> 1730665.746 | U82: =U79+U80-U81 -> 1730665.746 | W82: =W79+W80-W81 -> 1730665.746
C84: Accumulated Depreciation
D85: Opening Balance | K85: =I88 -> -42211.35966 | M85: =K88 -> -84422.71931 | O85: =M88 -> -126634.079 | Q85: =O88 -> -168845.4386 | S85: =Q88 -> -211056.7983 | U85: =S88 -> -253268.1579 | W85: =U88 -> -291727.3967
D86: Amortization expense during year | I86: =IF(ISERROR(-(I80/('3. Cost_of_Service_Parameters'!G51)+MIN((I79/'3. Cost_of_Service_Parameters'!G51),(I79+I85)))), 0, -(I80/('3. Cost_of_Service_Parameters'!G51)+MIN((I79/'3. Cost_of_Service_Parameters'!G51),(I79+I85)))) -> -42211.35966 | K86: =IF(ISERROR(-(K80/('3. Cost_of_Service_Parameters'!I51*2)+MIN((K79/'3. Cost_of_Service_Parameters'!I51),(K79+K85)))), 0, -(K80/('3. Cost_of_Service_Parameters'!I51*2)+MIN((K79/'3. Cost_of_Service_Parameters'!I51),(K79+K85)))) -> -42211.35966 | M86: =IF(ISERROR(-(M80/('3. Cost_of_Service_Parameters'!K51*2)+MIN((M79/'3. Cost_of_Service_Parameters'!K51),(M79+M85)))), 0, -(M80/('3. Cost_of_Service_Parameters'!K51*2)+MIN((M79/'3. Cost_of_Service_Parameters'!K51),(M79+M85)))) -> -42211.35966 | O86: =IF(ISERROR(-(O80/('3. Cost_of_Service_Parameters'!M51*2)+MIN((O79/'3. Cost_of_Service_Parameters'!M51),(O79+O85)))), 0, -(O80/('3. Cost_of_Service_Parameters'!M51*2)+MIN((O79/'3. Cost_of_Service_Parameters'!M51),(O79+O85)))) -> -42211.35966 | Q86: =IF(ISERROR(-(Q80/('3. Cost_of_Service_Parameters'!O51*2)+MIN((Q79/'3. Cost_of_Service_Parameters'!O51),(Q79+Q85)))), 0, -(Q80/('3. Cost_of_Service_Parameters'!O51*2)+MIN((Q79/'3. Cost_of_Service_Parameters'!O51),(Q79+Q85)))) -> -42211.35966 | S86: =IF(ISERROR(-(S80/('3. Cost_of_Service_Parameters'!Q51*2)+MIN((S79/'3. Cost_of_Service_Parameters'!Q51),(S79+S85)))), 0, -(S80/('3. Cost_of_Service_Parameters'!Q51*2)+MIN((S79/'3. Cost_of_Service_Parameters'!Q51),(S79+S85)))) -> -42211.35966 | U86: =IF(ISERROR(-(U80/('3. Cost_of_Service_Parameters'!S51*2)+MIN((U79/'3. Cost_of_Service_Parameters'!S51),(U79+U85)))), 0, -(U80/('3. Cost_of_Service_Parameters'!S51*2)+MIN((U79/'3. Cost_of_Service_Parameters'!S51),(U79+U85)))) -> -38459.2388 | W86: =IF(ISERROR(-(W80/('3. Cost_of_Service_Parameters'!U51*2)+MIN((W79/'3. Cost_of_Service_Parameters'!U51),(W79+W85)))), 0, -(W80/('3. Cost_of_Service_Parameters'!U51*2)+MIN((W79/'3. Cost_of_Service_Parameters'!U51),(W79+W85)))) -> -38459.2388
D87: Retirements/Removals (if applicable)
D88: Closing Balance | I88: =I85+I86-I87 -> -42211.35966 | K88: =K85+K86-K87 -> -84422.71931 | M88: =M85+M86-M87 -> -126634.079 | O88: =O85+O86-O87 -> -168845.4386 | Q88: =Q85+Q86-Q87 -> -211056.7983 | S88: =S85+S86-S87 -> -253268.1579 | U88: =U85+U86-U87 -> -291727.3967 | W88: =W85+W86-W87 -> -330186.6355
C90: Net Book Value
D91: Opening Balance | I91: =I79+I85 -> 0 | K91: =I92 -> 1688454.386 | M91: =K92 -> 1646243.027 | O91: =M92 -> 1604031.667 | Q91: =O92 -> 1561820.307 | S91: =Q92 -> 1519608.948 | U91: =S92 -> 1477397.588 | W91: =U92 -> 1438938.349
D92: Closing Balance | I92: =I82+I88 -> 1688454.386 | K92: =K82+K88 -> 1646243.027 | M92: =M82+M88 -> 1604031.667 | O92: =O82+O88 -> 1561820.307 | Q92: =Q82+Q88 -> 1519608.948 | S92: =S82+S88 -> 1477397.588 | U92: =U82+U88 -> 1438938.349 | W92: =W82+W88 -> 1400479.11
D93: Incremental CAPEX | I93: =I92 -> 1688454.386 | K93: =AVERAGE(K91:K92) -> 1667348.706 | M93: =AVERAGE(M91:M92) -> 1625137.347 | O93: =AVERAGE(O91:O92) -> 1582925.987 | Q93: =AVERAGE(Q91:Q92) -> 1540714.627 | S93: =AVERAGE(S91:S92) -> 1498503.268 | U93: =AVERAGE(U91:U92) -> 1458167.969 | W93: =AVERAGE(W91:W92) -> 1419708.73
B95: Net Fixed Assets - OH Prim Cond & Dev
C97: Gross Book Value
D98: Opening Balance | K98: =I101 -> 2595998.619 | M98: =K101 -> 2595998.619 | O98: =M101 -> 2595998.619 | Q98: =O101 -> 2595998.619 | S98: =Q101 -> 2595998.619 | U98: =S101 -> 2595998.619 | W98: =U101 -> 2595998.619
D99: Capital Additions during year (from ICM Costs) | I99: ='2. ICM_Costs'!G196 -> 2595998.619 | K99: ='2. ICM_Costs'!I190 -> 0
D100: Retirements/Removals (if applicable)
D101: Closing Balance | I101: =I98+I99-I100 -> 2595998.619 | K101: =K98+K99-K100 -> 2595998.619 | M101: =M98+M99-M100 -> 2595998.619 | O101: =O98+O99-O100 -> 2595998.619 | Q101: =Q98+Q99-Q100 -> 2595998.619 | S101: =S98+S99-S100 -> 2595998.619 | U101: =U98+U99-U100 -> 2595998.619 | W101: =W98+W99-W100 -> 2595998.619
C103: Accumulated Depreciation
D104: Opening Balance | K104: =I107 -> -57688.8582 | M104: =K107 -> -115377.7164 | O104: =M107 -> -173066.5746 | Q104: =O107 -> -230755.4328 | S104: =Q107 -> -288444.291 | U104: =S107 -> -346133.1492 | W104: =U107 -> -398053.1216
D105: Amortization expense during year | I105: =IF(ISERROR(-(I99/('3. Cost_of_Service_Parameters'!G53)+MIN((I98/'3. Cost_of_Service_Parameters'!G53),(I98+I104)))), 0, -(I99/('3. Cost_of_Service_Parameters'!G53)+MIN((I98/'3. Cost_of_Service_Parameters'!G53),(I98+I104)))) -> -57688.8582 | K105: =IF(ISERROR(-(K99/('3. Cost_of_Service_Parameters'!I53*2)+MIN((K98/'3. Cost_of_Service_Parameters'!I53),(K98+K104)))), 0, -(K99/('3. Cost_of_Service_Parameters'!I53*2)+MIN((K98/'3. Cost_of_Service_Parameters'!I53),(K98+K104)))) -> -57688.8582 | M105: =IF(ISERROR(-(M99/('3. Cost_of_Service_Parameters'!K53*2)+MIN((M98/'3. Cost_of_Service_Parameters'!K53),(M98+M104)))), 0, -(M99/('3. Cost_of_Service_Parameters'!K53*2)+MIN((M98/'3. Cost_of_Service_Parameters'!K53),(M98+M104)))) -> -57688.8582 | O105: =IF(ISERROR(-(O99/('3. Cost_of_Service_Parameters'!M53*2)+MIN((O98/'3. Cost_of_Service_Parameters'!M53),(O98+O104)))), 0, -(O99/('3. Cost_of_Service_Parameters'!M53*2)+MIN((O98/'3. Cost_of_Service_Parameters'!M53),(O98+O104)))) -> -57688.8582 | Q105: =IF(ISERROR(-(Q99/('3. Cost_of_Service_Parameters'!O53*2)+MIN((Q98/'3. Cost_of_Service_Parameters'!O53),(Q98+Q104)))), 0, -(Q99/('3. Cost_of_Service_Parameters'!O53*2)+MIN((Q98/'3. Cost_of_Service_Parameters'!O53),(Q98+Q104)))) -> -57688.8582 | S105: =IF(ISERROR(-(S99/('3. Cost_of_Service_Parameters'!Q53*2)+MIN((S98/'3. Cost_of_Service_Parameters'!Q53),(S98+S104)))), 0, -(S99/('3. Cost_of_Service_Parameters'!Q53*2)+MIN((S98/'3. Cost_of_Service_Parameters'!Q53),(S98+S104)))) -> -57688.8582 | U105: =IF(ISERROR(-(U99/('3. Cost_of_Service_Parameters'!S53*2)+MIN((U98/'3. Cost_of_Service_Parameters'!S53),(U98+U104)))), 0, -(U99/('3. Cost_of_Service_Parameters'!S53*2)+MIN((U98/'3. Cost_of_Service_Parameters'!S53),(U98+U104)))) -> -51919.97238 | W105: =IF(ISERROR(-(W99/('3. Cost_of_Service_Parameters'!U53*2)+MIN((W98/'3. Cost_of_Service_Parameters'!U53),(W98+W104)))), 0, -(W99/('3. Cost_of_Service_Parameters'!U53*2)+MIN((W98/'3. Cost_of_Service_Parameters'!U53),(W98+W104)))) -> -51919.97238
D106: Retirements/Removals (if applicable)
D107: Closing Balance | I107: =I104+I105-I106 -> -57688.8582 | K107: =K104+K105-K106 -> -115377.7164 | M107: =M104+M105-M106 -> -173066.5746 | O107: =O104+O105-O106 -> -230755.4328 | Q107: =Q104+Q105-Q106 -> -288444.291 | S107: =S104+S105-S106 -> -346133.1492 | U107: =U104+U105-U106 -> -398053.1216 | W107: =W104+W105-W106 -> -449973.0939
C109: Net Book Value
D110: Opening Balance | I110: =I98+I104 -> 0 | K110: =I111 -> 2538309.761 | M110: =K111 -> 2480620.903 | O110: =M111 -> 2422932.044 | Q110: =O111 -> 2365243.186 | S110: =Q111 -> 2307554.328 | U110: =S111 -> 2249865.47 | W110: =U111 -> 2197945.497
D111: Closing Balance | I111: =I101+I107 -> 2538309.761 | K111: =K101+K107 -> 2480620.903 | M111: =M101+M107 -> 2422932.044 | O111: =O101+O107 -> 2365243.186 | Q111: =Q101+Q107 -> 2307554.328 | S111: =S101+S107 -> 2249865.47 | U111: =U101+U107 -> 2197945.497 | W111: =W101+W107 -> 2146025.525
D112: Incremental CAPEX | I112: =I111 -> 2538309.761 | K112: =AVERAGE(K110:K111) -> 2509465.332 | M112: =AVERAGE(M110:M111) -> 2451776.473 | O112: =AVERAGE(O110:O111) -> 2394087.615 | Q112: =AVERAGE(Q110:Q111) -> 2336398.757 | S112: =AVERAGE(S110:S111) -> 2278709.899 | U112: =AVERAGE(U110:U111) -> 2223905.484 | W112: =AVERAGE(W110:W111) -> 2171985.511
B114: Net Fixed Assets - OH Sec Cond & Dev
C116: Gross Book Value
D117: Opening Balance | K117: =I120 -> 865332.873 | M117: =K120 -> 865332.873 | O117: =M120 -> 865332.873 | Q117: =O120 -> 865332.873 | S117: =Q120 -> 865332.873 | U117: =S120 -> 865332.873 | W117: =U120 -> 865332.873
D118: Capital Additions during year (from ICM Costs) | I118: ='2. ICM_Costs'!G198 -> 865332.873 | K118: ='2. ICM_Costs'!I192 -> 0
D119: Retirements/Removals (if applicable)
D120: Closing Balance | I120: =I117+I118-I119 -> 865332.873 | K120: =K117+K118-K119 -> 865332.873 | M120: =M117+M118-M119 -> 865332.873 | O120: =O117+O118-O119 -> 865332.873 | Q120: =Q117+Q118-Q119 -> 865332.873 | S120: =S117+S118-S119 -> 865332.873 | U120: =U117+U118-U119 -> 865332.873 | W120: =W117+W118-W119 -> 865332.873
C122: Accumulated Depreciation
D123: Opening Balance | K123: =I126 -> -18027.76819 | M123: =K126 -> -36055.53637 | O123: =M126 -> -54083.30456 | Q123: =O126 -> -72111.07275 | S123: =Q126 -> -90138.84093 | U123: =S126 -> -108166.6091 | W123: =U126 -> -125473.2666
D124: Amortization expense during year | I124: =IF(ISERROR(-(I118/('3. Cost_of_Service_Parameters'!G55)+MIN((I117/'3. Cost_of_Service_Parameters'!G55),(I117+I123)))), 0, -(I118/('3. Cost_of_Service_Parameters'!G55)+MIN((I117/'3. Cost_of_Service_Parameters'!G55),(I117+I123)))) -> -18027.76819 | K124: =IF(ISERROR(-(K118/('3. Cost_of_Service_Parameters'!I55*2)+MIN((K117/'3. Cost_of_Service_Parameters'!I55),(K117+K123)))), 0, -(K118/('3. Cost_of_Service_Parameters'!I55*2)+MIN((K117/'3. Cost_of_Service_Parameters'!I55),(K117+K123)))) -> -18027.76819 | M124: =IF(ISERROR(-(M118/('3. Cost_of_Service_Parameters'!K55*2)+MIN((M117/'3. Cost_of_Service_Parameters'!K55),(M117+M123)))), 0, -(M118/('3. Cost_of_Service_Parameters'!K55*2)+MIN((M117/'3. Cost_of_Service_Parameters'!K55),(M117+M123)))) -> -18027.76819 | O124: =IF(ISERROR(-(O118/('3. Cost_of_Service_Parameters'!M55*2)+MIN((O117/'3. Cost_of_Service_Parameters'!M55),(O117+O123)))), 0, -(O118/('3. Cost_of_Service_Parameters'!M55*2)+MIN((O117/'3. Cost_of_Service_Parameters'!M55),(O117+O123)))) -> -18027.76819 | Q124: =IF(ISERROR(-(Q118/('3. Cost_of_Service_Parameters'!O55*2)+MIN((Q117/'3. Cost_of_Service_Parameters'!O55),(Q117+Q123)))), 0, -(Q118/('3. Cost_of_Service_Parameters'!O55*2)+MIN((Q117/'3. Cost_of_Service_Parameters'!O55),(Q117+Q123)))) -> -18027.76819 | S124: =IF(ISERROR(-(S118/('3. Cost_of_Service_Parameters'!Q55*2)+MIN((S117/'3. Cost_of_Service_Parameters'!Q55),(S117+S123)))), 0, -(S118/('3. Cost_of_Service_Parameters'!Q55*2)+MIN((S117/'3. Cost_of_Service_Parameters'!Q55),(S117+S123)))) -> -18027.76819 | U124: =IF(ISERROR(-(U118/('3. Cost_of_Service_Parameters'!S55*2)+MIN((U117/'3. Cost_of_Service_Parameters'!S55),(U117+U123)))), 0, -(U118/('3. Cost_of_Service_Parameters'!S55*2)+MIN((U117/'3. Cost_of_Service_Parameters'!S55),(U117+U123)))) -> -17306.65746 | W124: =IF(ISERROR(-(W118/('3. Cost_of_Service_Parameters'!U55*2)+MIN((W117/'3. Cost_of_Service_Parameters'!U55),(W117+W123)))), 0, -(W118/('3. Cost_of_Service_Parameters'!U55*2)+MIN((W117/'3. Cost_of_Service_Parameters'!U55),(W117+W123)))) -> -17306.65746
D125: Retirements/Removals (if applicable)
D126: Closing Balance | I126: =I123+I124-I125 -> -18027.76819 | K126: =K123+K124-K125 -> -36055.53637 | M126: =M123+M124-M125 -> -54083.30456 | O126: =O123+O124-O125 -> -72111.07275 | Q126: =Q123+Q124-Q125 -> -90138.84093 | S126: =S123+S124-S125 -> -108166.6091 | U126: =U123+U124-U125 -> -125473.2666 | W126: =W123+W124-W125 -> -142779.924
C128: Net Book Value
D129: Opening Balance | I129: =I117+I123 -> 0 | K129: =I130 -> 847305.1048 | M129: =K130 -> 829277.3366 | O129: =M130 -> 811249.5684 | Q129: =O130 -> 793221.8002 | S129: =Q130 -> 775194.032 | U129: =S130 -> 757166.2638 | W129: =U130 -> 739859.6064
D130: Closing Balance | I130: =I120+I126 -> 847305.1048 | K130: =K120+K126 -> 829277.3366 | M130: =M120+M126 -> 811249.5684 | O130: =O120+O126 -> 793221.8002 | Q130: =Q120+Q126 -> 775194.032 | S130: =S120+S126 -> 757166.2638 | U130: =U120+U126 -> 739859.6064 | W130: =W120+W126 -> 722552.9489
D131: Incremental CAPEX | I131: =I130 -> 847305.1048 | K131: =AVERAGE(K129:K130) -> 838291.2207 | M131: =AVERAGE(M129:M130) -> 820263.4525 | O131: =AVERAGE(O129:O130) -> 802235.6843 | Q131: =AVERAGE(Q129:Q130) -> 784207.9161 | S131: =AVERAGE(S129:S130) -> 766180.1479 | U131: =AVERAGE(U129:U130) -> 748512.9351 | W131: =AVERAGE(W129:W130) -> 731206.2777
B133: Net Fixed Assets - UG Transformers
C135: Gross Book Value
D136: Opening Balance | K136: =I139 -> 175689.7003 | M136: =K139 -> 175689.7003 | O136: =M139 -> 175689.7003 | Q136: =O139 -> 175689.7003 | S136: =Q139 -> 175689.7003 | U136: =S139 -> 175689.7003 | W136: =U139 -> 175689.7003
D137: Capital Additions during year (from ICM Costs) | I137: ='2. ICM_Costs'!G200 -> 175689.7003 | K137: ='2. ICM_Costs'!I194 -> 0
D138: Retirements/Removals (if applicable)
D139: Closing Balance | I139: =I136+I137-I138 -> 175689.7003 | K139: =K136+K137-K138 -> 175689.7003 | M139: =M136+M137-M138 -> 175689.7003 | O139: =O136+O137-O138 -> 175689.7003 | Q139: =Q136+Q137-Q138 -> 175689.7003 | S139: =S136+S137-S138 -> 175689.7003 | U139: =U136+U137-U138 -> 175689.7003 | W139: =W136+W137-W138 -> 175689.7003
C141: Accumulated Depreciation
D142: Opening Balance | K142: =I145 -> -5490.303133 | M142: =K145 -> -10980.60627 | O142: =M145 -> -16470.9094 | Q142: =O145 -> -21961.21253 | S142: =Q145 -> -27451.51566 | U142: =S145 -> -32941.8188 | W142: =U145 -> -38798.14214
D143: Amortization expense during year | I143: =IF(ISERROR(-(I137/('3. Cost_of_Service_Parameters'!G57)+MIN((I136/'3. Cost_of_Service_Parameters'!G57),(I136+I142)))), 0, -(I137/('3. Cost_of_Service_Parameters'!G57)+MIN((I136/'3. Cost_of_Service_Parameters'!G57),(I136+I142)))) -> -5490.303133 | K143: =IF(ISERROR(-(K137/('3. Cost_of_Service_Parameters'!I57*2)+MIN((K136/'3. Cost_of_Service_Parameters'!I57),(K136+K142)))), 0, -(K137/('3. Cost_of_Service_Parameters'!I57*2)+MIN((K136/'3. Cost_of_Service_Parameters'!I57),(K136+K142)))) -> -5490.303133 | M143: =IF(ISERROR(-(M137/('3. Cost_of_Service_Parameters'!K57*2)+MIN((M136/'3. Cost_of_Service_Parameters'!K57),(M136+M142)))), 0, -(M137/('3. Cost_of_Service_Parameters'!K57*2)+MIN((M136/'3. Cost_of_Service_Parameters'!K57),(M136+M142)))) -> -5490.303133 | O143: =IF(ISERROR(-(O137/('3. Cost_of_Service_Parameters'!M57*2)+MIN((O136/'3. Cost_of_Service_Parameters'!M57),(O136+O142)))), 0, -(O137/('3. Cost_of_Service_Parameters'!M57*2)+MIN((O136/'3. Cost_of_Service_Parameters'!M57),(O136+O142)))) -> -5490.303133 | Q143: =IF(ISERROR(-(Q137/('3. Cost_of_Service_Parameters'!O57*2)+MIN((Q136/'3. Cost_of_Service_Parameters'!O57),(Q136+Q142)))), 0, -(Q137/('3. Cost_of_Service_Parameters'!O57*2)+MIN((Q136/'3. Cost_of_Service_Parameters'!O57),(Q136+Q142)))) -> -5490.303133 | S143: =IF(ISERROR(-(S137/('3. Cost_of_Service_Parameters'!Q57*2)+MIN((S136/'3. Cost_of_Service_Parameters'!Q57),(S136+S142)))), 0, -(S137/('3. Cost_of_Service_Parameters'!Q57*2)+MIN((S136/'3. Cost_of_Service_Parameters'!Q57),(S136+S142)))) -> -5490.303133 | U143: =IF(ISERROR(-(U137/('3. Cost_of_Service_Parameters'!S57*2)+MIN((U136/'3. Cost_of_Service_Parameters'!S57),(U136+U142)))), 0, -(U137/('3. Cost_of_Service_Parameters'!S57*2)+MIN((U136/'3. Cost_of_Service_Parameters'!S57),(U136+U142)))) -> -5856.323342 | W143: =IF(ISERROR(-(W137/('3. Cost_of_Service_Parameters'!U57*2)+MIN((W136/'3. Cost_of_Service_Parameters'!U57),(W136+W142)))), 0, -(W137/('3. Cost_of_Service_Parameters'!U57*2)+MIN((W136/'3. Cost_of_Service_Parameters'!U57),(W136+W142)))) -> -5856.323342
D144: Retirements/Removals (if applicable)
D145: Closing Balance | I145: =I142+I143-I144 -> -5490.303133 | K145: =K142+K143-K144 -> -10980.60627 | M145: =M142+M143-M144 -> -16470.9094 | O145: =O142+O143-O144 -> -21961.21253 | Q145: =Q142+Q143-Q144 -> -27451.51566 | S145: =S142+S143-S144 -> -32941.8188 | U145: =U142+U143-U144 -> -38798.14214 | W145: =W142+W143-W144 -> -44654.46548
C147: Net Book Value
D148: Opening Balance | I148: =I136+I142 -> 0 | K148: =I149 -> 170199.3971 | M148: =K149 -> 164709.094 | O148: =M149 -> 159218.7909 | Q148: =O149 -> 153728.4877 | S148: =Q149 -> 148238.1846 | U148: =S149 -> 142747.8815 | W148: =U149 -> 136891.5581
D149: Closing Balance | I149: =I139+I145 -> 170199.3971 | K149: =K139+K145 -> 164709.094 | M149: =M139+M145 -> 159218.7909 | O149: =O139+O145 -> 153728.4877 | Q149: =Q139+Q145 -> 148238.1846 | S149: =S139+S145 -> 142747.8815 | U149: =U139+U145 -> 136891.5581 | W149: =W139+W145 -> 131035.2348
D150: Incremental CAPEX | I150: =I149 -> 170199.3971 | K150: =AVERAGE(K148:K149) -> 167454.2456 | M150: =AVERAGE(M148:M149) -> 161963.9424 | O150: =AVERAGE(O148:O149) -> 156473.6393 | Q150: =AVERAGE(Q148:Q149) -> 150983.3362 | S150: =AVERAGE(S148:S149) -> 145493.033 | U150: =AVERAGE(U148:U149) -> 139819.7198 | W150: =AVERAGE(W148:W149) -> 133963.3964
B152: Net Fixed Assets - UG Conduit
C154: Gross Book Value
D155: Opening Balance | K155: =I158 -> 488026.9451 | M155: =K158 -> 488026.9451 | O155: =M158 -> 488026.9451 | Q155: =O158 -> 488026.9451 | S155: =Q158 -> 488026.9451 | U155: =S158 -> 488026.9451 | W155: =U158 -> 488026.9451
D156: Capital Additions during year (from ICM Costs) | I156: ='2. ICM_Costs'!G202 -> 488026.9451 | K156: ='2. ICM_Costs'!I196 -> 0
D157: Retirements/Removals (if applicable)
D158: Closing Balance | I158: =I155+I156-I157 -> 488026.9451 | K158: =K155+K156-K157 -> 488026.9451 | M158: =M155+M156-M157 -> 488026.9451 | O158: =O155+O156-O157 -> 488026.9451 | Q158: =Q155+Q156-Q157 -> 488026.9451 | S158: =S155+S156-S157 -> 488026.9451 | U158: =U155+U156-U157 -> 488026.9451 | W158: =W155+W156-W157 -> 488026.9451
C160: Accumulated Depreciation
D161: Opening Balance | K161: =I164 -> -9385.133561 | M161: =K164 -> -18770.26712 | O161: =M164 -> -28155.40068 | Q161: =O164 -> -37540.53424 | S161: =Q164 -> -46925.6678 | U161: =S164 -> -56310.80136 | W161: =U164 -> -64444.58378
D162: Amortization expense during year | I162: =IF(ISERROR(-(I156/('3. Cost_of_Service_Parameters'!G59)+MIN((I155/'3. Cost_of_Service_Parameters'!G59),(I155+I161)))), 0, -(I156/('3. Cost_of_Service_Parameters'!G59)+MIN((I155/'3. Cost_of_Service_Parameters'!G59),(I155+I161)))) -> -9385.133561 | K162: =IF(ISERROR(-(K156/('3. Cost_of_Service_Parameters'!I59*2)+MIN((K155/'3. Cost_of_Service_Parameters'!I59),(K155+K161)))), 0, -(K156/('3. Cost_of_Service_Parameters'!I59*2)+MIN((K155/'3. Cost_of_Service_Parameters'!I59),(K155+K161)))) -> -9385.133561 | M162: =IF(ISERROR(-(M156/('3. Cost_of_Service_Parameters'!K59*2)+MIN((M155/'3. Cost_of_Service_Parameters'!K59),(M155+M161)))), 0, -(M156/('3. Cost_of_Service_Parameters'!K59*2)+MIN((M155/'3. Cost_of_Service_Parameters'!K59),(M155+M161)))) -> -9385.133561 | O162: =IF(ISERROR(-(O156/('3. Cost_of_Service_Parameters'!M59*2)+MIN((O155/'3. Cost_of_Service_Parameters'!M59),(O155+O161)))), 0, -(O156/('3. Cost_of_Service_Parameters'!M59*2)+MIN((O155/'3. Cost_of_Service_Parameters'!M59),(O155+O161)))) -> -9385.133561 | Q162: =IF(ISERROR(-(Q156/('3. Cost_of_Service_Parameters'!O59*2)+MIN((Q155/'3. Cost_of_Service_Parameters'!O59),(Q155+Q161)))), 0, -(Q156/('3. Cost_of_Service_Parameters'!O59*2)+MIN((Q155/'3. Cost_of_Service_Parameters'!O59),(Q155+Q161)))) -> -9385.133561 | S162: =IF(ISERROR(-(S156/('3. Cost_of_Service_Parameters'!Q59*2)+MIN((S155/'3. Cost_of_Service_Parameters'!Q59),(S155+S161)))), 0, -(S156/('3. Cost_of_Service_Parameters'!Q59*2)+MIN((S155/'3. Cost_of_Service_Parameters'!Q59),(S155+S161)))) -> -9385.133561 | U162: =IF(ISERROR(-(U156/('3. Cost_of_Service_Parameters'!S59*2)+MIN((U155/'3. Cost_of_Service_Parameters'!S59),(U155+U161)))), 0, -(U156/('3. Cost_of_Service_Parameters'!S59*2)+MIN((U155/'3. Cost_of_Service_Parameters'!S59),(U155+U161)))) -> -8133.782419 | W162: =IF(ISERROR(-(W156/('3. Cost_of_Service_Parameters'!U59*2)+MIN((W155/'3. Cost_of_Service_Parameters'!U59),(W155+W161)))), 0, -(W156/('3. Cost_of_Service_Parameters'!U59*2)+MIN((W155/'3. Cost_of_Service_Parameters'!U59),(W155+W161)))) -> -8133.782419
D163: Retirements/Removals (if applicable)
D164: Closing Balance | I164: =I161+I162-I163 -> -9385.133561 | K164: =K161+K162-K163 -> -18770.26712 | M164: =M161+M162-M163 -> -28155.40068 | O164: =O161+O162-O163 -> -37540.53424 | Q164: =Q161+Q162-Q163 -> -46925.6678 | S164: =S161+S162-S163 -> -56310.80136 | U164: =U161+U162-U163 -> -64444.58378 | W164: =W161+W162-W163 -> -72578.3662
C166: Net Book Value
D167: Opening Balance | I167: =I155+I161 -> 0 | K167: =I168 -> 478641.8116 | M167: =K168 -> 469256.678 | O167: =M168 -> 459871.5445 | Q167: =O168 -> 450486.4109 | S167: =Q168 -> 441101.2773 | U167: =S168 -> 431716.1438 | W167: =U168 -> 423582.3614
D168: Closing Balance | I168: =I158+I164 -> 478641.8116 | K168: =K158+K164 -> 469256.678 | M168: =M158+M164 -> 459871.5445 | O168: =O158+O164 -> 450486.4109 | Q168: =Q158+Q164 -> 441101.2773 | S168: =S158+S164 -> 431716.1438 | U168: =U158+U164 -> 423582.3614 | W168: =W158+W164 -> 415448.5789
D169: Incremental CAPEX | I169: =I168 -> 478641.8116 | K169: =AVERAGE(K167:K168) -> 473949.2448 | M169: =AVERAGE(M167:M168) -> 464564.1112 | O169: =AVERAGE(O167:O168) -> 455178.9777 | Q169: =AVERAGE(Q167:Q168) -> 445793.8441 | S169: =AVERAGE(S167:S168) -> 436408.7106 | U169: =AVERAGE(U167:U168) -> 427649.2526 | W169: =AVERAGE(W167:W168) -> 419515.4702
B171: Net Fixed Assets - UG Prim XLPE TR
C173: Gross Book Value
D174: Opening Balance | K174: =I177 -> 1300042.836 | M174: =K177 -> 1300042.836 | O174: =M177 -> 1300042.836 | Q174: =O177 -> 1300042.836 | S174: =Q177 -> 1300042.836 | U174: =S177 -> 1300042.836 | W174: =U177 -> 1300042.836
D175: Capital Additions during year (from ICM Costs) | I175: ='2. ICM_Costs'!G204 -> 1300042.836 | K175: ='2. ICM_Costs'!I198 -> 0
D176: Retirements/Removals (if applicable)
D177: Closing Balance | I177: =I174+I175-I176 -> 1300042.836 | K177: =K174+K175-K176 -> 1300042.836 | M177: =M174+M175-M176 -> 1300042.836 | O177: =O174+O175-O176 -> 1300042.836 | Q177: =Q174+Q175-Q176 -> 1300042.836 | S177: =S174+S175-S176 -> 1300042.836 | U177: =U174+U175-U176 -> 1300042.836 | W177: =W174+W175-W176 -> 1300042.836
C179: Accumulated Depreciation
D180: Opening Balance | K180: =I183 -> -34211.65358 | M180: =K183 -> -68423.30716 | O180: =M183 -> -102634.9607 | Q180: =O183 -> -136846.6143 | S180: =Q183 -> -171058.2679 | U180: =S183 -> -205269.9215 | W180: =U183 -> -234159.7623
D181: Amortization expense during year | I181: =IF(ISERROR(-(I175/('3. Cost_of_Service_Parameters'!G61)+MIN((I174/'3. Cost_of_Service_Parameters'!G61),(I174+I180)))), 0, -(I175/('3. Cost_of_Service_Parameters'!G61)+MIN((I174/'3. Cost_of_Service_Parameters'!G61),(I174+I180)))) -> -34211.65358 | K181: =IF(ISERROR(-(K175/('3. Cost_of_Service_Parameters'!I61*2)+MIN((K174/'3. Cost_of_Service_Parameters'!I61),(K174+K180)))), 0, -(K175/('3. Cost_of_Service_Parameters'!I61*2)+MIN((K174/'3. Cost_of_Service_Parameters'!I61),(K174+K180)))) -> -34211.65358 | M181: =IF(ISERROR(-(M175/('3. Cost_of_Service_Parameters'!K61*2)+MIN((M174/'3. Cost_of_Service_Parameters'!K61),(M174+M180)))), 0, -(M175/('3. Cost_of_Service_Parameters'!K61*2)+MIN((M174/'3. Cost_of_Service_Parameters'!K61),(M174+M180)))) -> -34211.65358 | O181: =IF(ISERROR(-(O175/('3. Cost_of_Service_Parameters'!M61*2)+MIN((O174/'3. Cost_of_Service_Parameters'!M61),(O174+O180)))), 0, -(O175/('3. Cost_of_Service_Parameters'!M61*2)+MIN((O174/'3. Cost_of_Service_Parameters'!M61),(O174+O180)))) -> -34211.65358 | Q181: =IF(ISERROR(-(Q175/('3. Cost_of_Service_Parameters'!O61*2)+MIN((Q174/'3. Cost_of_Service_Parameters'!O61),(Q174+Q180)))), 0, -(Q175/('3. Cost_of_Service_Parameters'!O61*2)+MIN((Q174/'3. Cost_of_Service_Parameters'!O61),(Q174+Q180)))) -> -34211.65358 | S181: =IF(ISERROR(-(S175/('3. Cost_of_Service_Parameters'!Q61*2)+MIN((S174/'3. Cost_of_Service_Parameters'!Q61),(S174+S180)))), 0, -(S175/('3. Cost_of_Service_Parameters'!Q61*2)+MIN((S174/'3. Cost_of_Service_Parameters'!Q61),(S174+S180)))) -> -34211.65358 | U181: =IF(ISERROR(-(U175/('3. Cost_of_Service_Parameters'!S61*2)+MIN((U174/'3. Cost_of_Service_Parameters'!S61),(U174+U180)))), 0, -(U175/('3. Cost_of_Service_Parameters'!S61*2)+MIN((U174/'3. Cost_of_Service_Parameters'!S61),(U174+U180)))) -> -28889.8408 | W181: =IF(ISERROR(-(W175/('3. Cost_of_Service_Parameters'!U61*2)+MIN((W174/'3. Cost_of_Service_Parameters'!U61),(W174+W180)))), 0, -(W175/('3. Cost_of_Service_Parameters'!U61*2)+MIN((W174/'3. Cost_of_Service_Parameters'!U61),(W174+W180)))) -> -28889.8408
D182: Retirements/Removals (if applicable)
D183: Closing Balance | I183: =I180+I181-I182 -> -34211.65358 | K183: =K180+K181-K182 -> -68423.30716 | M183: =M180+M181-M182 -> -102634.9607 | O183: =O180+O181-O182 -> -136846.6143 | Q183: =Q180+Q181-Q182 -> -171058.2679 | S183: =S180+S181-S182 -> -205269.9215 | U183: =U180+U181-U182 -> -234159.7623 | W183: =W180+W181-W182 -> -263049.6031
C185: Net Book Value
D186: Opening Balance | I186: =I174+I180 -> 0 | K186: =I187 -> 1265831.182 | M186: =K187 -> 1231619.529 | O186: =M187 -> 1197407.875 | Q186: =O187 -> 1163196.222 | S186: =Q187 -> 1128984.568 | U186: =S187 -> 1094772.915 | W186: =U187 -> 1065883.074
D187: Closing Balance | I187: =I177+I183 -> 1265831.182 | K187: =K177+K183 -> 1231619.529 | M187: =M177+M183 -> 1197407.875 | O187: =O177+O183 -> 1163196.222 | Q187: =Q177+Q183 -> 1128984.568 | S187: =S177+S183 -> 1094772.915 | U187: =U177+U183 -> 1065883.074 | W187: =W177+W183 -> 1036993.233
D188: Incremental CAPEX | I188: =I187 -> 1265831.182 | K188: =AVERAGE(K186:K187) -> 1248725.356 | M188: =AVERAGE(M186:M187) -> 1214513.702 | O188: =AVERAGE(O186:O187) -> 1180302.048 | Q188: =AVERAGE(Q186:Q187) -> 1146090.395 | S188: =AVERAGE(S186:S187) -> 1111878.741 | U188: =AVERAGE(U186:U187) -> 1080327.994 | W188: =AVERAGE(W186:W187) -> 1051438.153
B191: Net Fixed Assets - UG Sec - Dir Buried
C193: Gross Book Value
D194: Opening Balance | K194: =I197 -> 519199.7238 | M194: =K197 -> 519199.7238 | O194: =M197 -> 519199.7238 | Q194: =O197 -> 519199.7238 | S194: =Q197 -> 519199.7238 | U194: =S197 -> 519199.7238 | W194: =U197 -> 519199.7238
D195: Capital Additions during year (from ICM Costs) | I195: ='2. ICM_Costs'!G206 -> 519199.7238
D196: Retirements/Removals (if applicable)
D197: Closing Balance | I197: =I194+I195-I196 -> 519199.7238 | K197: =K194+K195-K196 -> 519199.7238 | M197: =M194+M195-M196 -> 519199.7238 | O197: =O194+O195-O196 -> 519199.7238 | Q197: =Q194+Q195-Q196 -> 519199.7238 | S197: =S194+S195-S196 -> 519199.7238 | U197: =U194+U195-U196 -> 519199.7238 | W197: =W194+W195-W196 -> 519199.7238
C199: Accumulated Depreciation
D200: Opening Balance | K200: =I203 -> -16748.37819 | M200: =K203 -> -33496.75637 | O200: =M203 -> -50245.13456 | Q200: =O203 -> -66993.51275 | S200: =Q203 -> -83741.89093 | U200: =S203 -> -100490.2691 | W200: =U203 -> -117796.9266
D201: Amortization expense during year | I201: =IF(ISERROR(-(I195/('3. Cost_of_Service_Parameters'!G63)+MIN((I194/'3. Cost_of_Service_Parameters'!G63),(I194+I200)))), 0, -(I195/('3. Cost_of_Service_Parameters'!G63)+MIN((I194/'3. Cost_of_Service_Parameters'!G63),(I194+I200)))) -> -16748.37819 | K201: =IF(ISERROR(-(K195/('3. Cost_of_Service_Parameters'!I63*2)+MIN((K194/'3. Cost_of_Service_Parameters'!I63),(K194+K200)))), 0, -(K195/('3. Cost_of_Service_Parameters'!I63*2)+MIN((K194/'3. Cost_of_Service_Parameters'!I63),(K194+K200)))) -> -16748.37819 | M201: =IF(ISERROR(-(M195/('3. Cost_of_Service_Parameters'!K63*2)+MIN((M194/'3. Cost_of_Service_Parameters'!K63),(M194+M200)))), 0, -(M195/('3. Cost_of_Service_Parameters'!K63*2)+MIN((M194/'3. Cost_of_Service_Parameters'!K63),(M194+M200)))) -> -16748.37819 | O201: =IF(ISERROR(-(O195/('3. Cost_of_Service_Parameters'!M63*2)+MIN((O194/'3. Cost_of_Service_Parameters'!M63),(O194+O200)))), 0, -(O195/('3. Cost_of_Service_Parameters'!M63*2)+MIN((O194/'3. Cost_of_Service_Parameters'!M63),(O194+O200)))) -> -16748.37819 | Q201: =IF(ISERROR(-(Q195/('3. Cost_of_Service_Parameters'!O63*2)+MIN((Q194/'3. Cost_of_Service_Parameters'!O63),(Q194+Q200)))), 0, -(Q195/('3. Cost_of_Service_Parameters'!O63*2)+MIN((Q194/'3. Cost_of_Service_Parameters'!O63),(Q194+Q200)))) -> -16748.37819 | S201: =IF(ISERROR(-(S195/('3. Cost_of_Service_Parameters'!Q63*2)+MIN((S194/'3. Cost_of_Service_Parameters'!Q63),(S194+S200)))), 0, -(S195/('3. Cost_of_Service_Parameters'!Q63*2)+MIN((S194/'3. Cost_of_Service_Parameters'!Q63),(S194+S200)))) -> -16748.37819 | U201: =IF(ISERROR(-(U195/('3. Cost_of_Service_Parameters'!S63*2)+MIN((U194/'3. Cost_of_Service_Parameters'!S63),(U194+U200)))), 0, -(U195/('3. Cost_of_Service_Parameters'!S63*2)+MIN((U194/'3. Cost_of_Service_Parameters'!S63),(U194+U200)))) -> -17306.65746 | W201: =IF(ISERROR(-(W195/('3. Cost_of_Service_Parameters'!U63*2)+MIN((W194/'3. Cost_of_Service_Parameters'!U63),(W194+W200)))), 0, -(W195/('3. Cost_of_Service_Parameters'!U63*2)+MIN((W194/'3. Cost_of_Service_Parameters'!U63),(W194+W200)))) -> -17306.65746
D202: Retirements/Removals (if applicable)
D203: Closing Balance | I203: =I200+I201-I202 -> -16748.37819 | K203: =K200+K201-K202 -> -33496.75637 | M203: =M200+M201-M202 -> -50245.13456 | O203: =O200+O201-O202 -> -66993.51275 | Q203: =Q200+Q201-Q202 -> -83741.89093 | S203: =S200+S201-S202 -> -100490.2691 | U203: =U200+U201-U202 -> -117796.9266 | W203: =W200+W201-W202 -> -135103.584
C205: Net Book Value
D206: Opening Balance | I206: =I194+I200 -> 0 | K206: =I207 -> 502451.3456 | M206: =K207 -> 485702.9674 | O206: =M207 -> 468954.5892 | Q206: =O207 -> 452206.211 | S206: =Q207 -> 435457.8328 | U206: =S207 -> 418709.4547 | W206: =U207 -> 401402.7972
D207: Closing Balance | I207: =I197+I203 -> 502451.3456 | K207: =K197+K203 -> 485702.9674 | M207: =M197+M203 -> 468954.5892 | O207: =O197+O203 -> 452206.211 | Q207: =Q197+Q203 -> 435457.8328 | S207: =S197+S203 -> 418709.4547 | U207: =U197+U203 -> 401402.7972 | W207: =W197+W203 -> 384096.1397
D208: Incremental CAPEX | I208: =I207 -> 502451.3456 | K208: =AVERAGE(K206:K207) -> 494077.1565 | M208: =AVERAGE(M206:M207) -> 477328.7783 | O208: =AVERAGE(O206:O207) -> 460580.4001 | Q208: =AVERAGE(Q206:Q207) -> 443832.0219 | S208: =AVERAGE(S206:S207) -> 427083.6438 | U208: =AVERAGE(U206:U207) -> 410056.1259 | W208: =AVERAGE(W206:W207) -> 392749.4685
B211: Net Fixed Assets - UG Sec In Duct/Svs
C213: Gross Book Value
D214: Opening Balance | K214: =I217 -> 195210.7781 | M214: =K217 -> 195210.7781 | O214: =M217 -> 195210.7781 | Q214: =O217 -> 195210.7781 | S214: =Q217 -> 195210.7781 | U214: =S217 -> 195210.7781 | W214: =U217 -> 195210.7781
D215: Capital Additions during year (from ICM Costs) | I215: ='2. ICM_Costs'!G208 -> 195210.7781 | K215: ='2. ICM_Costs'!I246 -> 0
D216: Retirements/Removals (if applicable)
D217: Closing Balance | I217: =I214+I215-I216 -> 195210.7781 | K217: =K214+K215-K216 -> 195210.7781 | M217: =M214+M215-M216 -> 195210.7781 | O217: =O214+O215-O216 -> 195210.7781 | Q217: =Q214+Q215-Q216 -> 195210.7781 | S217: =S214+S215-S216 -> 195210.7781 | U217: =U214+U215-U216 -> 195210.7781 | W217: =W214+W215-W216 -> 195210.7781
C219: Accumulated Depreciation
D220: Opening Balance | K220: =I223 -> -5275.966975 | M220: =K223 -> -10551.93395 | O220: =M223 -> -15827.90092 | Q220: =O223 -> -21103.8679 | S220: =Q223 -> -26379.83487 | U220: =S223 -> -31655.80185 | W220: =U223 -> -36536.0713
D221: Amortization expense during year | I221: =IF(ISERROR(-(I215/('3. Cost_of_Service_Parameters'!G65)+MIN((I214/'3. Cost_of_Service_Parameters'!G65),(I214+I220)))), 0, -(I215/('3. Cost_of_Service_Parameters'!G65)+MIN((I214/'3. Cost_of_Service_Parameters'!G65),(I214+I220)))) -> -5275.966975 | K221: =IF(ISERROR(-(K215/('3. Cost_of_Service_Parameters'!I65*2)+MIN((K214/'3. Cost_of_Service_Parameters'!I65),(K214+K220)))), 0, -(K215/('3. Cost_of_Service_Parameters'!I65*2)+MIN((K214/'3. Cost_of_Service_Parameters'!I65),(K214+K220)))) -> -5275.966975 | M221: =IF(ISERROR(-(M215/('3. Cost_of_Service_Parameters'!K65*2)+MIN((M214/'3. Cost_of_Service_Parameters'!K65),(M214+M220)))), 0, -(M215/('3. Cost_of_Service_Parameters'!K65*2)+MIN((M214/'3. Cost_of_Service_Parameters'!K65),(M214+M220)))) -> -5275.966975 | O221: =IF(ISERROR(-(O215/('3. Cost_of_Service_Parameters'!M65*2)+MIN((O214/'3. Cost_of_Service_Parameters'!M65),(O214+O220)))), 0, -(O215/('3. Cost_of_Service_Parameters'!M65*2)+MIN((O214/'3. Cost_of_Service_Parameters'!M65),(O214+O220)))) -> -5275.966975 | Q221: =IF(ISERROR(-(Q215/('3. Cost_of_Service_Parameters'!O65*2)+MIN((Q214/'3. Cost_of_Service_Parameters'!O65),(Q214+Q220)))), 0, -(Q215/('3. Cost_of_Service_Parameters'!O65*2)+MIN((Q214/'3. Cost_of_Service_Parameters'!O65),(Q214+Q220)))) -> -5275.966975 | S221: =IF(ISERROR(-(S215/('3. Cost_of_Service_Parameters'!Q65*2)+MIN((S214/'3. Cost_of_Service_Parameters'!Q65),(S214+S220)))), 0, -(S215/('3. Cost_of_Service_Parameters'!Q65*2)+MIN((S214/'3. Cost_of_Service_Parameters'!Q65),(S214+S220)))) -> -5275.966975 | U221: =IF(ISERROR(-(U215/('3. Cost_of_Service_Parameters'!S65*2)+MIN((U214/'3. Cost_of_Service_Parameters'!S65),(U214+U220)))), 0, -(U215/('3. Cost_of_Service_Parameters'!S65*2)+MIN((U214/'3. Cost_of_Service_Parameters'!S65),(U214+U220)))) -> -4880.269451 | W221: =IF(ISERROR(-(W215/('3. Cost_of_Service_Parameters'!U65*2)+MIN((W214/'3. Cost_of_Service_Parameters'!U65),(W214+W220)))), 0, -(W215/('3. Cost_of_Service_Parameters'!U65*2)+MIN((W214/'3. Cost_of_Service_Parameters'!U65),(W214+W220)))) -> -4880.269451
D222: Retirements/Removals (if applicable)
D223: Closing Balance | I223: =I220+I221-I222 -> -5275.966975 | K223: =K220+K221-K222 -> -10551.93395 | M223: =M220+M221-M222 -> -15827.90092 | O223: =O220+O221-O222 -> -21103.8679 | Q223: =Q220+Q221-Q222 -> -26379.83487 | S223: =S220+S221-S222 -> -31655.80185 | U223: =U220+U221-U222 -> -36536.0713 | W223: =W220+W221-W222 -> -41416.34075
C225: Net Book Value
D226: Opening Balance | I226: =I214+I220 -> 0 | K226: =I227 -> 189934.8111 | M226: =K227 -> 184658.8441 | O226: =M227 -> 179382.8771 | Q226: =O227 -> 174106.9102 | S226: =Q227 -> 168830.9432 | U226: =S227 -> 163554.9762 | W226: =U227 -> 158674.7068
D227: Closing Balance | I227: =I217+I223 -> 189934.8111 | K227: =K217+K223 -> 184658.8441 | M227: =M217+M223 -> 179382.8771 | O227: =O217+O223 -> 174106.9102 | Q227: =Q217+Q223 -> 168830.9432 | S227: =S217+S223 -> 163554.9762 | U227: =U217+U223 -> 158674.7068 | W227: =W217+W223 -> 153794.4373
D228: Incremental CAPEX | I228: =I227 -> 189934.8111 | K228: =AVERAGE(K226:K227) -> 187296.8276 | M228: =AVERAGE(M226:M227) -> 182020.8606 | O228: =AVERAGE(O226:O227) -> 176744.8936 | Q228: =AVERAGE(Q226:Q227) -> 171468.9267 | S228: =AVERAGE(S226:S227) -> 166192.9597 | U228: =AVERAGE(U226:U227) -> 161114.8415 | W228: =AVERAGE(W226:W227) -> 156234.572
B231: Net Fixed Assets - Air Insulated Switchgear
C233: Gross Book Value
D234: Opening Balance | K234: =I237 -> 156168.6224 | M234: =K237 -> 156168.6224 | O234: =M237 -> 156168.6224 | Q234: =O237 -> 156168.6224 | S234: =Q237 -> 156168.6224 | U234: =S237 -> 156168.6224 | W234: =U237 -> 156168.6224
D235: Capital Additions during year (from ICM Costs) | I235: ='2. ICM_Costs'!G210 -> 156168.6224 | K235: ='2. ICM_Costs'!I266 -> 0
D236: Retirements/Removals (if applicable)
D237: Closing Balance | I237: =I234+I235-I236 -> 156168.6224 | K237: =K234+K235-K236 -> 156168.6224 | M237: =M234+M235-M236 -> 156168.6224 | O237: =O234+O235-O236 -> 156168.6224 | Q237: =Q234+Q235-Q236 -> 156168.6224 | S237: =S234+S235-S236 -> 156168.6224 | U237: =U234+U235-U236 -> 156168.6224 | W237: =W234+W235-W236 -> 156168.6224
C239: Accumulated Depreciation
D240: Opening Balance | K240: =I243 -> -4004.323652 | M240: =K243 -> -8008.647305 | O240: =M243 -> -12012.97096 | Q240: =O243 -> -16017.29461 | S240: =Q243 -> -20021.61826 | U240: =S243 -> -24025.94191 | W240: =U243 -> -28487.90256
D241: Amortization expense during year | I241: =IF(ISERROR(-(I235/('3. Cost_of_Service_Parameters'!G67)+MIN((I234/'3. Cost_of_Service_Parameters'!G67),(I234+I240)))), 0, -(I235/('3. Cost_of_Service_Parameters'!G67)+MIN((I234/'3. Cost_of_Service_Parameters'!G67),(I234+I240)))) -> -4004.323652 | K241: =IF(ISERROR(-(K235/('3. Cost_of_Service_Parameters'!I67*2)+MIN((K234/'3. Cost_of_Service_Parameters'!I67),(K234+K240)))), 0, -(K235/('3. Cost_of_Service_Parameters'!I67*2)+MIN((K234/'3. Cost_of_Service_Parameters'!I67),(K234+K240)))) -> -4004.323652 | M241: =IF(ISERROR(-(M235/('3. Cost_of_Service_Parameters'!K67*2)+MIN((M234/'3. Cost_of_Service_Parameters'!K67),(M234+M240)))), 0, -(M235/('3. Cost_of_Service_Parameters'!K67*2)+MIN((M234/'3. Cost_of_Service_Parameters'!K67),(M234+M240)))) -> -4004.323652 | O241: =IF(ISERROR(-(O235/('3. Cost_of_Service_Parameters'!M67*2)+MIN((O234/'3. Cost_of_Service_Parameters'!M67),(O234+O240)))), 0, -(O235/('3. Cost_of_Service_Parameters'!M67*2)+MIN((O234/'3. Cost_of_Service_Parameters'!M67),(O234+O240)))) -> -4004.323652 | Q241: =IF(ISERROR(-(Q235/('3. Cost_of_Service_Parameters'!O67*2)+MIN((Q234/'3. Cost_of_Service_Parameters'!O67),(Q234+Q240)))), 0, -(Q235/('3. Cost_of_Service_Parameters'!O67*2)+MIN((Q234/'3. Cost_of_Service_Parameters'!O67),(Q234+Q240)))) -> -4004.323652 | S241: =IF(ISERROR(-(S235/('3. Cost_of_Service_Parameters'!Q67*2)+MIN((S234/'3. Cost_of_Service_Parameters'!Q67),(S234+S240)))), 0, -(S235/('3. Cost_of_Service_Parameters'!Q67*2)+MIN((S234/'3. Cost_of_Service_Parameters'!Q67),(S234+S240)))) -> -4004.323652 | U241: =IF(ISERROR(-(U235/('3. Cost_of_Service_Parameters'!S67*2)+MIN((U234/'3. Cost_of_Service_Parameters'!S67),(U234+U240)))), 0, -(U235/('3. Cost_of_Service_Parameters'!S67*2)+MIN((U234/'3. Cost_of_Service_Parameters'!S67),(U234+U240)))) -> -4461.960641 | W241: =IF(ISERROR(-(W235/('3. Cost_of_Service_Parameters'!U67*2)+MIN((W234/'3. Cost_of_Service_Parameters'!U67),(W234+W240)))), 0, -(W235/('3. Cost_of_Service_Parameters'!U67*2)+MIN((W234/'3. Cost_of_Service_Parameters'!U67),(W234+W240)))) -> -4461.960641
D242: Retirements/Removals (if applicable)
D243: Closing Balance | I243: =I240+I241-I242 -> -4004.323652 | K243: =K240+K241-K242 -> -8008.647305 | M243: =M240+M241-M242 -> -12012.97096 | O243: =O240+O241-O242 -> -16017.29461 | Q243: =Q240+Q241-Q242 -> -20021.61826 | S243: =S240+S241-S242 -> -24025.94191 | U243: =U240+U241-U242 -> -28487.90256 | W243: =W240+W241-W242 -> -32949.8632
C245: Net Book Value
D246: Opening Balance | I246: =I234+I240 -> 0 | K246: =I247 -> 152164.2988 | M246: =K247 -> 148159.9751 | O246: =M247 -> 144155.6515 | Q246: =O247 -> 140151.3278 | S246: =Q247 -> 136147.0042 | U246: =S247 -> 132142.6805 | W246: =U247 -> 127680.7199
D247: Closing Balance | I247: =I237+I243 -> 152164.2988 | K247: =K237+K243 -> 148159.9751 | M247: =M237+M243 -> 144155.6515 | O247: =O237+O243 -> 140151.3278 | Q247: =Q237+Q243 -> 136147.0042 | S247: =S237+S243 -> 132142.6805 | U247: =U237+U243 -> 127680.7199 | W247: =W237+W243 -> 123218.7592
D248: Incremental CAPEX | I248: =I247 -> 152164.2988 | K248: =AVERAGE(K246:K247) -> 150162.137 | M248: =AVERAGE(M246:M247) -> 146157.8133 | O248: =AVERAGE(O246:O247) -> 142153.4897 | Q248: =AVERAGE(Q246:Q247) -> 138149.166 | S248: =AVERAGE(S246:S247) -> 134144.8424 | U248: =AVERAGE(U246:U247) -> 129911.7002 | W248: =AVERAGE(W246:W247) -> 125449.7396
B251: Net Fixed Assets - Solid Dielectric Switchgear
C253: Gross Book Value
D254: Opening Balance | K254: =I257 -> 156168.6224 | M254: =K257 -> 156168.6224 | O254: =M257 -> 156168.6224 | Q254: =O257 -> 156168.6224 | S254: =Q257 -> 156168.6224 | U254: =S257 -> 156168.6224 | W254: =U257 -> 156168.6224
D255: Capital Additions during year (from ICM Costs) | I255: ='2. ICM_Costs'!G212 -> 156168.6224 | K255: ='2. ICM_Costs'!I286 -> 0
D256: Retirements/Removals (if applicable)
D257: Closing Balance | I257: =I254+I255-I256 -> 156168.6224 | K257: =K254+K255-K256 -> 156168.6224 | M257: =M254+M255-M256 -> 156168.6224 | O257: =O254+O255-O256 -> 156168.6224 | Q257: =Q254+Q255-Q256 -> 156168.6224 | S257: =S254+S255-S256 -> 156168.6224 | U257: =U254+U255-U256 -> 156168.6224 | W257: =W254+W255-W256 -> 156168.6224
C259: Accumulated Depreciation
D260: Opening Balance | K260: =I263 -> -3718.300534 | M260: =K263 -> -7436.601069 | O260: =M263 -> -11154.9016 | Q260: =O263 -> -14873.20214 | S260: =Q263 -> -18591.50267 | U260: =S263 -> -22309.80321 | W260: =U263 -> -25780.21704
D261: Amortization expense during year | I261: =IF(ISERROR(-(I255/('3. Cost_of_Service_Parameters'!G69)+MIN((I254/'3. Cost_of_Service_Parameters'!G69),(I254+I260)))), 0, -(I255/('3. Cost_of_Service_Parameters'!G69)+MIN((I254/'3. Cost_of_Service_Parameters'!G69),(I254+I260)))) -> -3718.300534 | K261: =IF(ISERROR(-(K255/('3. Cost_of_Service_Parameters'!I69*2)+MIN((K254/'3. Cost_of_Service_Parameters'!I69),(K254+K260)))), 0, -(K255/('3. Cost_of_Service_Parameters'!I69*2)+MIN((K254/'3. Cost_of_Service_Parameters'!I69),(K254+K260)))) -> -3718.300534 | M261: =IF(ISERROR(-(M255/('3. Cost_of_Service_Parameters'!K69*2)+MIN((M254/'3. Cost_of_Service_Parameters'!K69),(M254+M260)))), 0, -(M255/('3. Cost_of_Service_Parameters'!K69*2)+MIN((M254/'3. Cost_of_Service_Parameters'!K69),(M254+M260)))) -> -3718.300534 | O261: =IF(ISERROR(-(O255/('3. Cost_of_Service_Parameters'!M69*2)+MIN((O254/'3. Cost_of_Service_Parameters'!M69),(O254+O260)))), 0, -(O255/('3. Cost_of_Service_Parameters'!M69*2)+MIN((O254/'3. Cost_of_Service_Parameters'!M69),(O254+O260)))) -> -3718.300534 | Q261: =IF(ISERROR(-(Q255/('3. Cost_of_Service_Parameters'!O69*2)+MIN((Q254/'3. Cost_of_Service_Parameters'!O69),(Q254+Q260)))), 0, -(Q255/('3. Cost_of_Service_Parameters'!O69*2)+MIN((Q254/'3. Cost_of_Service_Parameters'!O69),(Q254+Q260)))) -> -3718.300534 | S261: =IF(ISERROR(-(S255/('3. Cost_of_Service_Parameters'!Q69*2)+MIN((S254/'3. Cost_of_Service_Parameters'!Q69),(S254+S260)))), 0, -(S255/('3. Cost_of_Service_Parameters'!Q69*2)+MIN((S254/'3. Cost_of_Service_Parameters'!Q69),(S254+S260)))) -> -3718.300534 | U261: =IF(ISERROR(-(U255/('3. Cost_of_Service_Parameters'!S69*2)+MIN((U254/'3. Cost_of_Service_Parameters'!S69),(U254+U260)))), 0, -(U255/('3. Cost_of_Service_Parameters'!S69*2)+MIN((U254/'3. Cost_of_Service_Parameters'!S69),(U254+U260)))) -> -3470.413832 | W261: =IF(ISERROR(-(W255/('3. Cost_of_Service_Parameters'!U69*2)+MIN((W254/'3. Cost_of_Service_Parameters'!U69),(W254+W260)))), 0, -(W255/('3. Cost_of_Service_Parameters'!U69*2)+MIN((W254/'3. Cost_of_Service_Parameters'!U69),(W254+W260)))) -> -3470.413832
D262: Retirements/Removals (if applicable)
D263: Closing Balance | I263: =I260+I261-I262 -> -3718.300534 | K263: =K260+K261-K262 -> -7436.601069 | M263: =M260+M261-M262 -> -11154.9016 | O263: =O260+O261-O262 -> -14873.20214 | Q263: =Q260+Q261-Q262 -> -18591.50267 | S263: =S260+S261-S262 -> -22309.80321 | U263: =U260+U261-U262 -> -25780.21704 | W263: =W260+W261-W262 -> -29250.63087
C265: Net Book Value
D266: Opening Balance | I266: =I254+I260 -> 0 | K266: =I267 -> 152450.3219 | M266: =K267 -> 148732.0214 | O266: =M267 -> 145013.7208 | Q266: =O267 -> 141295.4203 | S266: =Q267 -> 137577.1198 | U266: =S267 -> 133858.8192 | W266: =U267 -> 130388.4054
D267: Closing Balance | I267: =I257+I263 -> 152450.3219 | K267: =K257+K263 -> 148732.0214 | M267: =M257+M263 -> 145013.7208 | O267: =O257+O263 -> 141295.4203 | Q267: =Q257+Q263 -> 137577.1198 | S267: =S257+S263 -> 133858.8192 | U267: =U257+U263 -> 130388.4054 | W267: =W257+W263 -> 126917.9916
D268: Incremental CAPEX | I268: =I267 -> 152450.3219 | K268: =AVERAGE(K266:K267) -> 150591.1716 | M268: =AVERAGE(M266:M267) -> 146872.8711 | O268: =AVERAGE(O266:O267) -> 143154.5706 | Q268: =AVERAGE(Q266:Q267) -> 139436.27 | S268: =AVERAGE(S266:S267) -> 135717.9695 | U268: =AVERAGE(U266:U267) -> 132123.6123 | W268: =AVERAGE(W266:W267) -> 128653.1985
B271: Net Fixed Assets - UG Cable Injection
C273: Gross Book Value
D274: Opening Balance | K274: =I277 -> 0 | M274: =K277 -> 0 | O274: =M277 -> 0 | Q274: =O277 -> 0 | S274: =Q277 -> 0 | U274: =S277 -> 0 | W274: =U277 -> 0
... 60 more rows

Sheet 5. UCC_Calculation
A18: Sheet 6: CCA For PILs Calculation
A20: UCC/Class 47 | D20: ='3. Cost_of_Service_Parameters'!G19 -> 2019
D21: ='2. ICM_Costs'!G19 -> Audited Actual
A23: Opening UCC | D23: 0
A24: Capital Additions | D24: =+'6. ICMIRR_2019'!F27 -> 19258765.24
A25: Retirements/Removals (if applicable)
A26: UCC Full Year | D26: =SUM(D23:D24)-D25 -> 19258765.24
A29: CCA Rate Class | D29: ='3. Cost_of_Service_Parameters'!G83 -> 47
A30: CCA Rate | D30: ='3. Cost_of_Service_Parameters'!G84 -> 0.08
A31: CCA | D31: =D26*D30 -> 1540701.219
A32: Closing UCC | D32: =IF((D26-D31)<0, 0, D26-D31) -> 17718064.02
A34: UCC/Class 8 | D34: =D20 -> 2019
D35: Audited Actual
A37: Opening UCC | D37: 0
A38: Capital Additions RTU's | D38: 0
A39: Retirements/Removals (if applicable)
A40: UCC Full Year | D40: =SUM(D37:D38)-D39 -> 0
A43: CCA Rate Class | D43: ='3. Cost_of_Service_Parameters'!G107 -> 47
A44: CCA Rate | D44: ='3. Cost_of_Service_Parameters'!G108 -> 0.08
A45: CCA | D45: =D40*D44 -> 0
A46: Closing UCC | D46: =IF((D40-D45)<0, 0, D40-D45) -> 0

Sheet 6. ICMIRR_2019
A11: Sheet 6: | C11: Incremental Capital Adjustment
I24: 2019 OEB Approved
C26: Return on Rate Base | G26: Actual spend
C27: Incremental Capital CAPEX | F27: =+'2. ICM_Costs'!G168 -> 19258765.24 | G27: B | K27: 13272246
C28: Depreciation Expense | F28: =-'4. ICM_Assets_and_Rate_Base'!I357 -> 424385.0778 | G28: C | K28: 308754
C29: Incremental Capital CAPEX to be included in Rate Base | F29: =(F27+(F27-F28))/2 -> 19046572.7 | G29: D = B - C | K29: =(K27+(K27-K28))/2 -> 13117869
C31: Deemed ShortTerm Debt % | D31: ='3. Cost_of_Service_Parameters'!G22 -> 0.04 | E31: E | F31: =F29*D31 -> 761862.908 | G31: G = D * E | I31: =D31 -> 0.04 | K31: =K29*I31 -> 524714.76
C32: Deemed Long Term Debt % | D32: ='3. Cost_of_Service_Parameters'!G23 -> 0.56 | E32: F | F32: =F29*D32 -> 10666080.71 | G32: H = D * F | I32: =D32 -> 0.56 | K32: =K29*I32 -> 7346006.64
C34: Short Term Interest | D34: ='3. Cost_of_Service_Parameters'!G29 -> 0.0176 | E34: I | F34: =F31*D34 -> 13408.78718 | G34: K = G * I | I34: =D34 -> 0.0176 | K34: =K31*I34 -> 9234.979776
C35: Long Term Interest | D35: ='3. Cost_of_Service_Parameters'!G30 -> 0.03882504 | E35: J | F35: =F32*D35 -> 414111.0103 | G35: L = H * J | I35: =D35 -> 0.03882504 | K35: =K32*I35 -> 285209.0016
C37: Return on Rate Base - Interest | F37: =SUM(F34:F35) -> 427519.7975 | G37: M = K + L | K37: =SUM(K34:K35) -> 294443.9814
C40: Deemed Equity % | D40: ='3. Cost_of_Service_Parameters'!G24 -> 0.4 | E40: N | F40: =F29*D40 -> 7618629.08 | G40: P = D * N | I40: 0.4 | K40: =K29*I40 -> 5247147.6
C42: Return on Rate Base -Equity | D42: ='3. Cost_of_Service_Parameters'!G31 -> 0.0878 | E42: O | F42: =F40*D42 -> 668915.6333 | G42: Q = P * O | I42: =D42 -> 0.0878 | K42: =K40*I42 -> 460699.5593
C44: Return on Rate Base - Total | F44: =F37+F42 -> 1096435.431 | G44: R = M + Q | K44: =K37+K42 -> 755143.5407
C48: Amortization Expense
C50: Amortization Expense - Incremental | E50: C | F50: =F28 -> 424385.0778 | G50: S | K50: =K28 -> 308754
C53: Grossed up PIL's
C55: Regulatory Taxable Income | E55: O | F55: =F42 -> 668915.6333 | G55: T | K55: =K42 -> 460699.5593
C57: Add Back Amortization Expense | E57: S | F57: =F50 -> 424385.0778 | G57: U | K57: =K50 -> 308754
C59: Deduct CCA | F59: ='5. UCC_Calculation'!D31+'5. UCC_Calculation'!D45 -> 1540701.219 | G59: V | K59: 1061780
C61: Incremental Taxable Income | F61: =F55+F57-F59 -> -447400.5081 | G61: W = T + U - V | K61: =K55+K57-K59 -> -292326.4407
C63: Current Tax Rate (F1.1 Z-Factor Tax Changes) | D63: ='3. Cost_of_Service_Parameters'!G40 -> 0.265 | E63: X | I63: =D63 -> 0.265
C65: PIL's Before Gross Up | F65: =F61*D63 -> -118561.1346 | G65: Y = W * X | K65: =K61*I63 -> -77466.50679
C67: Incremental Grossed Up PIL's | F67: =F65/(1-D63) -> -161307.6662 | G67: Z = Y / ( 1 - X ) | K67: =K65/(1-I63) -> -105396.6079
C70: Ontario Capital Tax
C71: Incremental Capital CAPEX | F71: =F27 -> 19258765.24 | G71: AA | K71: =K27 -> 13272246
C73: Less : Available Capital Exemption (if any) | F73: 0 | G73: AB | K73: 0
C75: Incremental Capital CAPEX subject to OCT | F75: =F71-F73 -> 19258765.24 | G75: AC = AA - AB | K75: =K71-K73 -> 13272246
C77: Ontario Capital Tax Rate (F1.1 Z-Factor Tax Changes) | D77: 0 | E77: AD
C79: Incremental Ontario Capital Tax | F79: =F75*D77 -> 0 | G79: AE = AC * AD | K79: =K75*I77 -> 0
C82: Incremental Revenue Requirement
C83: Return on Rate Base - Total | E83: Q | F83: =F44 -> 1096435.431 | G83: AF | K83: =K44 -> 755143.5407
C84: Amortization Expense - Total | E84: S | F84: =F50 -> 424385.0778 | G84: AG | K84: =K50 -> 308754
C85: Incremental Grossed Up PIL's | E85: Z | F85: =F67 -> -161307.6662 | G85: AH | K85: =K67 -> -105396.6079
C86: Incremental Ontario Capital Tax | E86: AE | F86: =F79 -> 0 | G86: AI | K86: =K79 -> 0
C88: Incremental Revenue Requirement | F88: =SUM(F83:F86) -> 1359512.842 | G88: AJ = AF + AG + AH + AI | K88: =SUM(K83:K86) -> 958500.9328

Sheet 7. Funding Adder Revs
B13: This worksheet calculates the funding adder revenues.
B17: Sheet 7: ICM Funding Adder Revenues
J20: Account 1511 - Sub-account ICM Funding Adder Revenues
K21: Rate Rider Collected
B22: Prescribed Interest Rates | C22: Approved Deferral and Variance Accounts | D22: CWIP | F22: Date | G22: Year | H22: Quarter | J22: Opening Balance (Principal) | K22: Funding Adder Revenues | L22: Interest Rate | M22: Interest | N22: Principal & Interest (Cumm.) | P22: Board Approved ICM Funding Adder | Q22: Board Approved ICM Funding Adder (Cumm.)
B24: 2018 Q1 | C24: 0.015 | D24: 0.0299 | F24: 2018-01-01 | G24: =YEAR(F24) -> 2018 | H24: =IF(MONTH(F24)=0,"",IF(MONTH(F24)<4,"Q1",IF(MONTH(F24)<7,"Q2",IF(MONTH(F24)<10,"Q3","Q4")))) -> Q1 | I24: =CONCATENATE(G24," ",H24) -> 2018 Q1 | J24: 0 | L24: 0.015 | M24: =ROUND(J24*L24/12,2) -> 0 | N24: =K24+M24 -> 0 | Q24: =P24 -> 0
B25: 2018 Q2 | C25: 0.0189 | D25: 0.0335 | F25: 2018-02-01 | G25: =YEAR(F25) -> 2018 | H25: =IF(MONTH(F25)=0,"",IF(MONTH(F25)<4,"Q1",IF(MONTH(F25)<7,"Q2",IF(MONTH(F25)<10,"Q3","Q4")))) -> Q1 | I25: =CONCATENATE(G25," ",H25) -> 2018 Q1 | J25: =J24+K24 -> 0 | L25: 0.015 | M25: =ROUND(J25*L25/12,2) -> 0 | N25: =N24+K25+M25 -> 0 | Q25: =Q24+P25 -> 0
B26: 2018 Q3 | C26: 0.0189 | D26: 0.0335 | F26: 2018-03-01 | G26: 2018 | H26: Q1 | I26: 2018 Q1 | J26: =J25+K25 -> 0 | L26: 0.015 | M26: 0 | N26: =N25+K26+M26 -> 0 | Q26: =Q25+P26 -> 0
B27: 2018 Q4 | C27: 0.0217 | D27: 0.0335 | F27: 2018-04-01 | G27: 2018 | H27: Q2 | I27: 2018 Q2 | J27: 0 | L27: 0.0189 | M27: 0 | N27: 0 | Q27: 0
B28: 2019 Q1 | C28: 0.0245 | D28: 0.0382 | F28: 2018-05-01 | G28: 2018 | H28: Q2 | I28: 2018 Q2 | J28: 0 | L28: 0.0189 | M28: 0 | N28: 0 | Q28: 0
B29: 2019 Q2 | C29: 0.0218 | D29: 0.0339 | F29: 2018-06-01 | G29: 2018 | H29: Q2 | I29: 2018 Q2 | J29: 0 | L29: 0.0189 | M29: 0 | N29: 0 | Q29: 0
B30: 2019 Q3 | C30: 0.0218 | D30: 0.0288 | F30: 2018-07-01 | G30: 2018 | H30: Q3 | I30: 2018 Q3 | J30: 0 | L30: 0.0189 | M30: 0 | N30: 0 | Q30: 0
B31: 2019 Q4 | C31: 0.0218 | D31: 0.0288 | F31: 2018-08-01 | G31: 2018 | H31: Q3 | I31: 2018 Q3 | J31: 0 | L31: 0.0189 | M31: 0 | N31: 0 | Q31: 0
B32: 2020 Q1 | C32: 0.0218 | D32: 0.0288 | F32: 2018-09-01 | G32: 2018 | H32: Q3 | I32: 2018 Q3 | J32: 0 | L32: 0.0189 | M32: 0 | N32: 0 | Q32: 0
B33: 2020 Q2 | C33: 0.0218 | D33: 0.0248 | F33: 2018-10-01 | G33: 2018 | H33: Q4 | I33: 2018 Q4 | J33: 0 | L33: 0.0217 | M33: 0 | N33: 0 | Q33: 0
B34: 2020 Q3 | C34: 0.0057 | D34: 0.0248 | F34: 2018-11-01 | G34: 2018 | H34: Q4 | I34: 2018 Q4 | J34: 0 | L34: 0.0217 | M34: 0 | N34: 0 | Q34: 0
B35: 2020 Q4 | C35: 0.0057 | D35: 0.0203 | F35: 2018-12-01 | G35: 2018 | H35: Q4 | I35: 2018 Q4 | J35: 0 | L35: 0.0217 | M35: 0 | N35: 0 | Q35: 0
B36: 2021 Q1 | C36: 0.0057 | D36: 0.0203 | F36: 2019-01-01 | G36: 2019 | H36: Q1 | I36: 2019 Q1 | J36: 0 | L36: 0.0245 | M36: 0 | N36: 0 | Q36: 0
B37: 2021 Q2 | C37: 0.0057 | D37: 0.0229 | F37: 2019-02-01 | G37: 2019 | H37: Q1 | I37: 2019 Q1 | J37: 0 | L37: 0.0245 | M37: 0 | N37: 0 | Q37: 0
B38: 2021 Q3 | C38: 0.0057 | D38: 0.0229 | F38: 2019-03-01 | G38: 2019 | H38: Q1 | I38: 2019 Q1 | J38: 0 | K38: 42800.34001 | L38: 0.0245 | M38: 0 | N38: =N37+K38+M38 -> 42800.34001 | P38: 79875.07773 | Q38: 79875.07773
B39: 2021 Q4 | C39: 0.0057 | D39: 0.0229 | F39: 2019-04-01 | G39: 2019 | H39: Q2 | I39: 2019 Q2 | J39: =J38+K38 -> 42800.34001 | K39: 149494.3613 | L39: 0.0218 | M39: 77.75 | N39: =N38+K39+M39 -> 192372.4513 | P39: 79875.07773 | Q39: 159750.1555
B40: 2022 Q1 | C40: 0.0057 | D40: 0.0272 | F40: 2019-05-01 | G40: 2019 | H40: Q2 | I40: 2019 Q2 | J40: =J39+K39 -> 192294.7013 | K40: 97302.76764 | L40: 0.0218 | M40: 349.34 | N40: 290024.5589 | P40: 79875.07773 | Q40: 239625.2332
B41: 2022 Q2 | C41: 0.0102 | D41: 0.0331 | F41: 2019-06-01 | G41: 2019 | H41: Q2 | I41: 2019 Q2 | J41: 289597.4689 | K41: 97134.91138 | L41: 0.0218 | M41: 526.1 | N41: 387685.5703 | P41: 79875.07773 | Q41: 319500.3109
B42: 2022 Q3 | C42: 0.022 | D42: 0.0466 | F42: 2019-07-01 | G42: 2019 | H42: Q3 | I42: 2019 Q3 | J42: 386732.3803 | K42: 103244.698 | L42: 0.0218 | M42: 702.56 | N42: 491632.8283 | P42: 79875.07773 | Q42: 399375.3887
B43: 2022 Q4 | C43: 0.0387 | D43: 0.0501 | F43: 2019-08-01 | G43: 2019 | H43: Q3 | I43: 2019 Q3 | J43: 489977.0783 | K43: 95920.0493 | L43: 0.0218 | M43: 890.13 | N43: 588443.0076 | P43: 79875.07773 | Q43: 479250.4664
B44: 2023 Q1 | C44: 0.0473 | D44: 0.0501 | F44: 2019-09-01 | G44: 2019 | H44: Q3 | I44: 2019 Q3 | J44: 585897.1276 | K44: 90179.53424 | L44: 0.0218 | M44: 1064.38 | N44: 679686.9219 | P44: 79875.07773 | Q44: 559125.5441
B45: 2023 Q2 | C45: 0.0498 | D45: 0.0501 | F45: 2019-10-01 | G45: 2019 | H45: Q4 | I45: 2019 Q4 | J45: 676076.6619 | K45: 99078.74823 | L45: 0.0218 | M45: 1228.21 | N45: 779993.8801 | P45: 79875.07773 | Q45: 639000.6219
B46: 2023 Q3 | C46: 0.0498 | D46: 0.0501 | F46: 2019-11-01 | G46: 2019 | H46: Q4 | I46: 2019 Q4 | J46: 775155.4101 | K46: 94267.40324 | L46: 0.0218 | M46: 1408.2 | N46: 875669.4833 | P46: 79875.07773 | Q46: 718875.6996
B47: 2023 Q4 | C47: 0.0549 | D47: 0.0548 | F47: 2019-12-01 | G47: 2019 | H47: Q4 | I47: 2019 Q4 | J47: 869422.8133 | K47: 98270.88224 | L47: 0.0218 | M47: 1579.45 | N47: 975519.8156 | P47: 79875.07773 | Q47: 798750.7773
B48: 2024 Q1 | C48: 0.0549 | D48: 0.0548 | F48: 2020-01-01 | G48: 2020 | H48: Q1 | I48: 2020 Q1 | J48: 967693.6956 | K48: 94626.29599 | L48: 0.0218 | M48: =ROUND(J48*L48/12,2) -> 1757.98 | N48: =N47+K48+M48 -> 1071904.092 | P48: 79875.07773 | Q48: =Q47+P48 -> 878625.8551
B49: 2024 Q2 | C49: 0.0549 | D49: 0.0598 | F49: 2020-02-01 | G49: 2020 | H49: Q1 | I49: 2020 Q1 | J49: 1062319.992 | K49: 90413.17531 | L49: 0.0218 | M49: 1929.88 | N49: 1164247.147 | P49: 79875.07773 | Q49: 958500.9328
B50: 2024 Q3 | C50: 0.052 | D50: 0.0598 | F50: 2020-03-01 | G50: 2020 | H50: Q1 | I50: 2020 Q1 | J50: 1152733.167 | K50: 101571.608 | L50: 0.0218 | M50: 2094.13 | N50: 1267912.885 | P50: 79875.07773 | Q50: 1038376.011
B51: 2024 Q4 | C51: 0.044 | D51: 0.0455 | F51: 2020-04-01 | G51: 2020 | H51: Q2 | I51: 2020 Q2 | J51: 1254304.775 | K51: 87509.40665 | L51: 0.0218 | M51: 2278.65 | N51: 1357700.942 | P51: 79875.07773 | Q51: 1118251.088
B52: 2025 Q1 | C52: 0.0364 | D52: 0.0423 | F52: 2020-05-01 | G52: 2020 | H52: Q2 | I52: 2020 Q2 | J52: 1341814.182 | K52: 93215.81365 | L52: 0.0218 | M52: 2437.63 | N52: 1453354.385 | P52: 79875.07773 | Q52: 1198126.166
B53: 2025 Q2 | C53: 0.0316 | D53: 0.0423 | F53: 2020-06-01 | G53: 2020 | H53: Q2 | I53: 2020 Q2 | J53: 1435029.995 | K53: 101180.8294 | L53: 0.0218 | M53: 2606.97 | N53: 1557142.185 | P53: 79875.07773 | Q53: 1278001.244
B54: 2025 Q3 | C54: 0.0291 | D54: =D53 -> 0.0423 | F54: 2020-07-01 | G54: 2020 | H54: Q3 | I54: 2020 Q3 | J54: 1536210.825 | K54: 98408.80463 | L54: 0.0057 | M54: 729.7 | N54: 1656280.689 | P54: 79875.07773 | Q54: 1357876.321
B55: 2025 Q4 | C55: 0.0291 | D55: =D54 -> 0.0423 | F55: 2020-08-01 | G55: 2020 | H55: Q3 | I55: 2020 Q3 | J55: 1634619.629 | K55: 96816.15703 | L55: 0.0057 | M55: 776.44 | N55: 1753873.286 | P55: 79875.07773 | Q55: 1437751.399
B56: 2026 Q1 | C56: 0.0255 | D56: 0.0423 | F56: 2020-09-01 | G56: 2020 | H56: Q3 | I56: 2020 Q3 | J56: 1731435.786 | K56: 95619.53413 | L56: 0.0057 | M56: 822.43 | N56: 1850315.25 | P56: 79875.07773 | Q56: 1517626.477
B57: 2026 Q2 | C57: =C56 -> 0.0255 | D57: 0.0423 | F57: 2020-10-01 | G57: 2020 | H57: Q4 | I57: 2020 Q4 | J57: 1827055.32 | K57: 97945.41782 | L57: 0.0057 | M57: 867.85 | N57: 1949128.518 | P57: 79875.07773 | Q57: 1597501.555
B58: 2026 Q3 | C58: 0.0255 | D58: 0.0423 | F58: 2020-11-01 | G58: 2020 | H58: Q4 | I58: 2020 Q4 | J58: 1925000.738 | K58: 97230.55163 | L58: 0.0057 | M58: 914.38 | N58: 2047273.45 | P58: 79875.07773 | Q58: 1677376.632
B59: 2026 Q4 | C59: 0.0255 | D59: 0.0423 | F59: 2020-12-01 | G59: 2020 | H59: =IF(MONTH(F59)=0,"",IF(MONTH(F59)<4,"Q1",IF(MONTH(F59)<7,"Q2",IF(MONTH(F59)<10,"Q3","Q4")))) -> Q4 | I59: 2020 Q4 | J59: 2022231.29 | K59: 101880.0794 | L59: 0.0057 | M59: 960.56 | N59: 2150114.089 | P59: 79875.07773 | Q59: 1757251.71
F60: 2021-01-01 | G60: 2021 | H60: Q1 | I60: 2021 Q1 | J60: =J59+K59 -> 2124111.369 | K60: 92799.51061 | L60: 0.0057 | M60: 1008.95 | N60: 2243922.55 | P60: 79875.07773 | Q60: 1837126.788
B61: Note: 2025-2026 Interest rates are forecasted. | F61: 2021-02-01 | G61: 2021 | H61: Q1 | I61: 2021 Q1 | J61: 2216910.88 | K61: 91037.42073 | L61: 0.0057 | M61: 1053.03 | N61: 2336013.001 | P61: 79875.07773 | Q61: 1917001.866
F62: 2021-03-01 | G62: 2021 | H62: Q1 | I62: 2021 Q1 | J62: 2307948.301 | K62: 102424.7103 | L62: 0.0057 | M62: 1096.28 | N62: 2439533.991 | P62: 79875.07773 | Q62: 1996876.943
F63: 2021-04-01 | G63: 2021 | H63: Q2 | I63: 2021 Q2 | J63: 2410373.011 | K63: 82891.94776 | L63: 0.0057 | M63: 1144.93 | N63: 2523570.869 | P63: 79875.07773 | Q63: 2076752.021
F64: 2021-05-01 | G64: 2021 | H64: Q2 | I64: 2021 Q2 | J64: 2493264.959 | K64: 99387.35033 | L64: 0.0057 | M64: 1184.3 | N64: 2624142.519 | P64: 79875.07773 | Q64: 2156627.099
F65: 2021-06-01 | G65: 2021 | H65: Q2 | I65: 2021 Q2 | J65: 2592652.309 | K65: 98829.41257 | L65: 0.0057 | M65: 1231.51 | N65: 2724203.442 | P65: 79875.07773 | Q65: 2236502.177
F66: 2021-07-01 | G66: 2021 | H66: Q3 | I66: 2021 Q3 | J66: 2691481.722 | K66: 100005.1297 | L66: 0.0057 | M66: 1278.45 | N66: 2825487.021 | P66: 79875.07773 | Q66: 2316377.254
F67: 2021-08-01 | G67: 2021 | H67: Q3 | I67: 2021 Q3 | J67: 2791486.851 | K67: 101791.5588 | L67: 0.0057 | M67: 1325.96 | N67: 2928604.54 | P67: 79875.07773 | Q67: 2396252.332
F68: 2021-09-01 | G68: 2021 | H68: Q3 | I68: 2021 Q3 | J68: 2893278.41 | K68: 92854.76845 | L68: 0.0057 | M68: 1374.31 | N68: 3022833.619 | P68: 79875.07773 | Q68: 2476127.41
F69: 2021-10-01 | G69: 2021 | H69: Q4 | I69: 2021 Q4 | J69: 2986133.179 | K69: 97628.52835 | L69: 0.0057 | M69: 1418.41 | N69: 3121880.557 | P69: 79875.07773 | Q69: 2556002.488
F70: 2021-11-01 | G70: 2021 | H70: Q4 | I70: 2021 Q4 | J70: 3083761.707 | K70: 98557.06226 | L70: 0.0057 | M70: 1464.79 | N70: 3221902.409 | P70: 79875.07773 | Q70: 2635877.565
F71: 2021-12-01 | G71: 2021 | H71: =IF(MONTH(F71)=0,"",IF(MONTH(F71)<4,"Q1",IF(MONTH(F71)<7,"Q2",IF(MONTH(F71)<10,"Q3","Q4")))) -> Q4 | I71: 2021 Q4 | J71: 3182318.769 | K71: 98371.14982 | L71: 0.0057 | M71: 1511.6 | N71: 3321785.159 | P71: 79875.07773 | Q71: 2715752.643
F72: 2022-01-01 | G72: =YEAR(F72) -> 2022 | H72: =IF(MONTH(F72)=0,"",IF(MONTH(F72)<4,"Q1",IF(MONTH(F72)<7,"Q2",IF(MONTH(F72)<10,"Q3","Q4")))) -> Q1 | I72: 2022 Q1 | J72: =J71+K71 -> 3280689.919 | K72: 93371.50465 | L72: 0.0057 | M72: =ROUND(J72*L72/12,2) -> 1558.33 | N72: =N71+K72+M72 -> 3416714.994 | P72: 79875.07773 | Q72: =Q71+P72 -> 2795627.721
F73: 2022-02-01 | G73: 2022 | H73: Q1 | I73: 2022 Q1 | J73: 3374061.424 | K73: 91370.05708 | L73: 0.0057 | M73: 1602.68 | N73: 3509687.731 | P73: 79875.07773 | Q73: 2875502.798
F74: 2022-03-01 | G74: 2022 | H74: Q1 | I74: 2022 Q1 | J74: 3465431.481 | K74: 102661.3317 | L74: 0.0057 | M74: 1646.08 | N74: 3613995.142 | P74: 79875.07773 | Q74: 2955377.876
F75: 2022-04-01 | G75: 2022 | H75: Q2 | I75: 2022 Q2 | J75: 3568092.812 | K75: 88387.08349 | L75: 0.0102 | M75: 3032.88 | N75: 3705415.106 | P75: 79875.07773 | Q75: 3035252.954
F76: 2022-05-01 | G76: 2022 | H76: Q2 | I76: 2022 Q2 | J76: 3656479.896 | K76: 99789.65809 | L76: 0.0102 | M76: 3108.01 | N76: 3808312.774 | P76: 79875.07773 | Q76: 3115128.032
F77: 2022-06-01 | G77: 2022 | H77: Q2 | I77: 2022 Q2 | J77: 3756269.554 | K77: 99782.38159 | L77: 0.0102 | M77: 3192.83 | N77: 3911287.986 | P77: 79875.07773 | Q77: 3195003.109
F78: 2022-07-01 | G78: 2022 | H78: Q3 | I78: 2022 Q3 | J78: 3856051.936 | K78: 101035.5869 | L78: 0.022 | M78: 7069.43 | N78: 4019393.002 | P78: 79875.07773 | Q78: 3274878.187
F79: 2022-08-01 | G79: 2022 | H79: Q3 | I79: 2022 Q3 | J79: 3957087.522 | K79: 103677.1749 | L79: 0.022 | M79: 7254.66 | N79: 4130324.837 | P79: 79875.07773 | Q79: 3354753.265
F80: 2022-09-01 | G80: 2022 | H80: Q3 | I80: 2022 Q3 | J80: 4060764.697 | K80: 93701.34368 | L80: 0.022 | M80: 7444.74 | N80: 4231470.921 | P80: 79875.07773 | Q80: 3434628.343
F81: 2022-10-01 | G81: 2022 | H81: Q4 | I81: 2022 Q4 | J81: 4154466.041 | K81: 97911.85005 | L81: 0.0387 | M81: 13398.15 | N81: 4342780.921 | P81: 79875.07773 | Q81: 3514503.42
F82: 2022-11-01 | G82: 2022 | H82: Q4 | I82: 2022 Q4 | J82: 4252377.891 | K82: 95701.10066 | L82: 0.0387 | M82: 13713.92 | N82: 4452195.942 | P82: 79875.07773 | Q82: 3594378.498
F83: 2022-12-01 | G83: 2022 | H83: =IF(MONTH(F83)=0,"",IF(MONTH(F83)<4,"Q1",IF(MONTH(F83)<7,"Q2",IF(MONTH(F83)<10,"Q3","Q4")))) -> Q4 | I83: 2022 Q4 | J83: 4348078.992 | K83: 101044.0486 | L83: 0.0387 | M83: 14022.55 | N83: 4567262.54 | P83: 79875.07773 | Q83: 3674253.576
F84: 2023-01-01 | G84: =YEAR(F84) -> 2023 | H84: =IF(MONTH(F84)=0,"",IF(MONTH(F84)<4,"Q1",IF(MONTH(F84)<7,"Q2",IF(MONTH(F84)<10,"Q3","Q4")))) -> Q1 | I84: 2023 Q1 | J84: =J83+K83 -> 4449123.04 | K84: 98849.49049 | L84: 0.0473 | M84: =ROUND(J84*L84/12,2) -> 17536.96 | N84: =N83+K84+M84 -> 4683648.991 | P84: 79875.07773 | Q84: =Q83+P84 -> 3754128.654
F85: 2023-02-01 | G85: 2023 | H85: Q1 | I85: 2023 Q1 | J85: 4547972.531 | K85: 89279.62704 | L85: 0.0473 | M85: 17926.59 | N85: 4790855.208 | P85: 79875.07773 | Q85: 3834003.731
F86: 2023-03-01 | G86: 2023 | H86: Q1 | I86: 2023 Q1 | J86: 4637252.158 | K86: 102727.6132 | L86: 0.0473 | M86: 18278.5 | N86: 4911861.321 | P86: 79875.07773 | Q86: 3913878.809
F87: 2023-04-01 | G87: 2023 | H87: Q2 | I87: 2023 Q2 | J87: 4739979.771 | K87: 95451.9393 | L87: 0.0498 | M87: 19670.92 | N87: 5026984.18 | P87: 79875.07773 | Q87: 3993753.887
F88: 2023-05-01 | G88: 2023 | H88: Q2 | I88: 2023 Q2 | J88: 4835431.71 | K88: 100544.2618 | L88: 0.0498 | M88: 20067.04 | N88: 5147595.482 | P88: 79875.07773 | Q88: 4073628.964
F89: 2023-06-01 | G89: 2023 | H89: Q2 | I89: =CONCATENATE(G89," ",H89) -> 2023 Q2 | J89: 4935975.972 | K89: 98417.31857 | L89: 0.0498 | M89: 20484.3 | N89: 5266497.101 | P89: 79875.07773 | Q89: 4153504.042
F90: 2023-07-01 | G90: 2023 | H90: Q3 | I90: 2023 Q3 | J90: 5034393.291 | K90: 103344.1203 | L90: 0.0498 | M90: 20892.73 | N90: 5390733.951 | P90: 79875.07773 | Q90: 4233379.12
F91: 2023-08-01 | G91: 2023 | H91: Q3 | I91: 2023 Q3 | J91: 5137737.411 | K91: 99723.54214 | L91: 0.0498 | M91: 21321.61 | N91: 5511779.103 | P91: 79875.07773 | Q91: 4313254.198
F92: 2023-09-01 | G92: 2023 | H92: Q3 | I92: 2023 Q3 | J92: 5237460.953 | K92: 98104.856 | L92: 0.0498 | M92: 21735.46 | N92: 5631619.419 | P92: 79875.07773 | Q92: 4393129.275
F93: 2023-10-01 | G93: 2023 | H93: Q4 | I93: 2023 Q4 | J93: 5335565.809 | K93: 100475.2527 | L93: 0.0549 | M93: 24410.21 | N93: 5756504.882 | P93: 79875.07773 | Q93: 4473004.353
F94: 2023-11-01 | G94: 2023 | H94: Q4 | I94: 2023 Q4 | J94: 5436041.062 | K94: 95113.56018 | L94: 0.0549 | M94: 24869.89 | N94: 5876488.332 | P94: 79875.07773 | Q94: 4552879.431
F95: 2023-12-01 | G95: 2023 | H95: =IF(MONTH(F95)=0,"",IF(MONTH(F95)<4,"Q1",IF(MONTH(F95)<7,"Q2",IF(MONTH(F95)<10,"Q3","Q4")))) -> Q4 | I95: 2023 Q4 | J95: 5531154.622 | K95: 100196.079 | L95: 0.0549 | M95: 25305.03 | N95: 6001989.441 | P95: 79875.07773 | Q95: 4632754.509
F96: 2024-01-01 | G96: =YEAR(F96) -> 2024 | H96: =IF(MONTH(F96)=0,"",IF(MONTH(F96)<4,"Q1",IF(MONTH(F96)<7,"Q2",IF(MONTH(F96)<10,"Q3","Q4")))) -> Q1 | I96: 2024 Q1 | J96: =J95+K95 -> 5631350.701 | K96: 98714.19984 | L96: 0.0549 | M96: =ROUND(J96*L96/12,2) -> 25763.43 | N96: =N95+K96+M96 -> 6126467.071 | P96: 79875.07773 | Q96: =Q95+P96 -> 4712629.586
F97: 2024-02-01 | G97: 2024 | H97: Q1 | I97: 2024 Q1 | J97: 5730064.901 | K97: 93208.63301 | L97: 0.0549 | M97: 26215.05 | N97: 6245890.754 | P97: 79875.07773 | Q97: 4792504.664
F98: 2024-03-01 | G98: 2024 | H98: Q1 | I98: 2024 Q1 | J98: 5823273.534 | K98: 99301.60961 | L98: 0.0549 | M98: 26641.48 | N98: 6371833.844 | P98: 79875.07773 | Q98: 4872379.742
F99: 2024-04-01 | G99: 2024 | H99: Q2 | I99: 2024 Q2 | J99: 5922575.144 | K99: 97380.22099 | L99: 0.0549 | M99: 27095.78 | N99: 6496309.845 | P99: 79875.07773 | Q99: 4952254.82
F100: 2024-05-01 | G100: 2024 | H100: Q2 | I100: 2024 Q2 | J100: 6019955.365 | K100: 99723.37657 | L100: 0.0549 | M100: 27541.3 | N100: 6623574.521 | P100: 79875.07773 | Q100: 5032129.897
F101: 2024-06-01 | G101: 2024 | H101: Q2 | I101: 2024 Q2 | J101: 6119678.741 | K101: 99891.04112 | L101: 0.0549 | M101: 27997.53 | N101: 6751463.092 | P101: 79875.07773 | Q101: 5112004.975
F102: 2024-07-01 | G102: 2024 | H102: Q3 | I102: 2024 Q3 | J102: 6219569.782 | K102: 104216.3681 | L102: 0.052 | M102: 26951.47 | N102: 6882630.93 | P102: 79875.07773 | Q102: 5191880.053
F103: 2024-08-01 | G103: 2024 | H103: Q3 | I103: 2024 Q3 | J103: 6323786.15 | K103: 101509.0563 | L103: 0.052 | M103: 27403.07 | N103: 7011543.057 | P103: 79875.07773 | Q103: 5271755.13
F104: 2024-09-01 | G104: 2024 | H104: Q3 | I104: 2024 Q3 | J104: 6425295.207 | K104: 98542.84912 | L104: 0.052 | M104: 27842.95 | N104: 7137928.856 | P104: 79875.07773 | Q104: 5351630.208
F105: 2024-10-01 | G105: 2024 | H105: Q4 | I105: 2024 Q4 | J105: 6523838.056 | K105: 101260.2173 | L105: 0.044 | M105: 23920.74 | N105: 7263109.813 | P105: 79875.07773 | Q105: 5431505.286
F106: 2024-11-01 | G106: 2024 | H106: Q4 | I106: 2024 Q4 | J106: 6625098.273 | K106: 95625.45119 | L106: 0.044 | M106: 24292.03 | N106: 7383027.294 | P106: 79875.07773 | Q106: 5511380.364
F107: 2024-12-01 | G107: 2024 | H107: =IF(MONTH(F107)=0,"",IF(MONTH(F107)<4,"Q1",IF(MONTH(F107)<7,"Q2",IF(MONTH(F107)<10,"Q3","Q4")))) -> Q4 | I107: 2024 Q4 | J107: 6720723.724 | K107: 99592.74811 | L107: 0.044 | M107: 24642.65 | N107: 7507262.692 | P107: 79875.07773 | Q107: 5591255.441
F108: 2025-01-01 | G108: =YEAR(F108) -> 2025 | H108: =IF(MONTH(F108)=0,"",IF(MONTH(F108)<4,"Q1",IF(MONTH(F108)<7,"Q2",IF(MONTH(F108)<10,"Q3","Q4")))) -> Q1 | I108: 2025 Q1 | J108: =J107+K107 -> 6820316.472 | K108: 101197.866 | L108: 0.0364 | M108: =ROUND(J108*L108/12,2) -> 20688.29 | N108: =N107+K108+M108 -> 7629148.848 | P108: 79875.07773 | Q108: =Q107+P108 -> 5671130.519
F109: 2025-02-01 | G109: 2025 | H109: Q1 | I109: 2025 Q1 | J109: 6921514.338 | K109: 92688.89906 | L109: 0.0364 | M109: 20995.26 | N109: 7742833.007 | P109: 79875.07773 | Q109: 5751005.597
F110: 2025-03-01 | G110: 2025 | H110: Q1 | I110: 2025 Q1 | J110: 7014203.237 | K110: 102856.6818 | L110: 0.0364 | M110: 21276.42 | N110: 7866966.109 | P110: 79875.07773 | Q110: 5830880.675
F111: 2025-04-01 | G111: 2025 | H111: Q2 | I111: 2025 Q2 | J111: 7117059.919 | K111: 95755.90536 | L111: 0.0316 | M111: 18741.59 | N111: 7981463.605 | P111: 79875.07773 | Q111: 5910755.752
F112: 2025-05-01 | G112: 2025 | H112: Q2 | I112: 2025 Q2 | J112: 7212815.825 | K112: 102640.1558 | L112: 0.0316 | M112: 18993.75 | N112: 8103097.51 | P112: 79875.07773 | Q112: 5990630.83
F113: 2025-06-01 | G113: 2025 | H113: Q2 | I113: 2025 Q2 | J113: 7315455.98 | K113: 103687.3446 | L113: 0.0316 | M113: 19264.03 | N113: 8226048.885 | P113: 79875.07773 | Q113: 6070505.908
F114: 2025-07-01 | G114: 2025 | H114: Q3 | I114: 2025 Q3 | J114: 7419143.325 | K114: 106795.7093 | L114: 0.0291 | M114: 17991.42 | N114: 8350836.014 | P114: 79875.07773 | Q114: 6150380.986
F115: 2025-08-01 | G115: 2025 | H115: Q3 | I115: 2025 Q3 | J115: 7525939.034 | K115: 103961.2112 | L115: 0.0291 | M115: 18250.4 | N115: 8473047.626 | P115: 79875.07773 | Q115: 6230256.063
F116: 2025-09-01 | G116: 2025 | H116: Q3 | I116: 2025 Q3 | J116: 7629900.246 | K116: 97717.08381 | L116: 0.0291 | M116: 18502.51 | N116: 8589267.219 | P116: 79875.07773 | Q116: 6310131.141
F117: 2025-10-01 | G117: 2025 | H117: Q4 | I117: 2025 Q4 | J117: 7727617.329 | K117: 101102.4087 | L117: 0.0291 | M117: 18739.47 | N117: 8709109.098 | P117: 79875.07773 | Q117: 6390006.219
F118: 2025-11-01 | G118: 2025 | H118: Q4 | I118: 2025 Q4 | J118: 7828719.738 | K118: 98596.7998 | L118: 0.0291 | M118: 18984.65 | N118: 8826690.548 | P118: 79875.07773 | Q118: 6469881.297
F119: 2025-12-01 | G119: 2025 | H119: =IF(MONTH(F119)=0,"",IF(MONTH(F119)<4,"Q1",IF(MONTH(F119)<7,"Q2",IF(MONTH(F119)<10,"Q3","Q4")))) -> Q4 | I119: 2025 Q4 | J119: 7927316.538 | K119: 103922.0663 | L119: 0.0291 | M119: 19223.74 | N119: 8949836.354 | P119: 79875.07773 | Q119: 6549756.374
F120: 2026-01-01 | G120: =YEAR(F120) -> 2026 | H120: =IF(MONTH(F120)=0,"",IF(MONTH(F120)<4,"Q1",IF(MONTH(F120)<7,"Q2",IF(MONTH(F120)<10,"Q3","Q4")))) -> Q1 | I120: 2026 Q1 | J120: =J119+K119 -> 8031238.604 | K120: 101399.1031 | L120: 0.0255 | M120: =ROUND(J120*L120/12,2) -> 17066.38 | N120: =N119+K120+M120 -> 9068301.837 | P120: 79875.07773 | Q120: =Q119+P120 -> 6629631.452
F121: 2026-02-01 | G121: 2026 | H121: Q1 | I121: 2026 Q1 | J121: 8132637.707 | K121: 91160.06352 | L121: 0.0255 | M121: 17281.86 | N121: 9176743.761 | P121: 79875.07773 | Q121: 6709506.53
F122: 2026-03-01 | G122: 2026 | H122: Q1 | I122: 2026 Q1 | J122: 8223797.771 | K122: 99826.85001 | L122: 0.0255 | M122: 17475.57 | N122: 9294046.181 | P122: 79875.07773 | Q122: 6789381.607
F123: 2026-04-01 | G123: 2026 | H123: Q2 | I123: 2026 Q2 | J123: 8323624.621 | K123: 97751.05148 | L123: 0.0255 | M123: 17687.7 | N123: 9409484.932 | P123: 79875.07773 | Q123: 6869256.685
F124: 2026-05-01 | G124: 2026 | H124: Q2 | I124: 2026 Q2 | J124: 8421375.672 | K124: 100522.3112 | L124: 0.0255 | M124: 17895.42 | N124: 9527902.663 | P124: 79875.07773 | Q124: 6949131.763
F125: 2026-06-01 | G125: 2026 | H125: Q2 | I125: 2026 Q2 | J125: 8521897.983 | K125: 101828.3239 | L125: 0.0255 | M125: 18109.03 | N125: 9647840.017 | P125: 79875.07773 | Q125: 7029006.841
F126: 2026-07-01 | G126: 2026 | H126: Q3 | I126: 2026 Q3 | J126: 8623726.307 | K126: 107785.7889 | L126: 0.0255 | M126: 18325.42 | N126: 9773951.226 | P126: 79875.07773 | Q126: 7108881.918
F127: 2026-08-01 | G127: 2026 | H127: Q3 | I127: 2026 Q3 | J127: 8731512.096 | K127: 102892.8198 | L127: 0.0255 | M127: 18554.46 | N127: 9895398.506 | P127: 79875.07773 | Q127: 7188756.996
F128: 2026-09-01 | G128: 2026 | H128: Q3 | I128: 2026 Q3 | J128: 8834404.916 | K128: 97849.20291 | L128: 0.0255 | M128: 18773.11 | N128: 10012020.82 | P128: 79875.07773 | Q128: 7268632.074
F129: 2026-10-01 | G129: 2026 | H129: Q4 | I129: 2026 Q4 | J129: 8932254.119 | K129: 101045.1642 | L129: 0.0255 | M129: 18981.04 | N129: 10132047.02 | P129: 79875.07773 | Q129: 7348507.152
F130: 2026-11-01 | G130: 2026 | H130: Q4 | I130: 2026 Q4 | J130: 9033299.283 | K130: 99393.47963 | L130: 0.0255 | M130: 19195.76 | N130: 10250636.26 | P130: 79875.07773 | Q130: 7428382.229
F131: 2026-12-01 | G131: 2026 | H131: =IF(MONTH(F131)=0,"",IF(MONTH(F131)<4,"Q1",IF(MONTH(F131)<7,"Q2",IF(MONTH(F131)<10,"Q3","Q4")))) -> Q4 | I131: 2026 Q4 | J131: 9132692.763 | K131: 102121.3472 | L131: 0.0255 | M131: 19406.97 | N131: 10372164.58 | P131: 79875.07773 | Q131: 7508257.307

Sheet 8. Opex Interest Annual
B13: This worksheet calculates the interest on amortization/depreciation expense, in the absence of monthly data.
B16: Sheet 8: Interest on Amortization (Annual Data)
B21: Year | D21: OM&A | F21: Amortization Expense | H21: Cumulative OM&A and Amortization Expense | J21: Average Cumulative OM&A and Amortization Expense | L21: Average Annual Prescribed Interest Rate for Deferral and Variance Accounts (from Sheet 7) | N21: Simple Interest on OM&A and Amortization Expenses
F22: (from Sheet 4)
B23: 2018 | D23: 0 | H23: =D23+F23 -> 0 | J23: =H23/2 -> 0 | L23: =AVERAGE('7. Funding Adder Revs'!C24:C27) -> 0.018625 | N23: =J23*L23 -> 0
B24: 2019 | D24: 0 | F24: =-'4. ICM_Assets_and_Rate_Base'!I357 -> 424385.0778 | H24: =H23+D24+F24 -> 424385.0778 | J24: =(H24+H23)/2 -> 212192.5389 | L24: =AVERAGE('7. Funding Adder Revs'!C28:C31) -> 0.022475 | N24: =J24*L24 -> 4769.027312
B25: 2020 | D25: 0 | F25: =-'4. ICM_Assets_and_Rate_Base'!K357 -> 424385.0778 | H25: =H24+D25+F25 -> 848770.1557 | J25: =(H25+H24)/2 -> 636577.6168 | L25: =AVERAGE('7. Funding Adder Revs'!C32:C35) -> 0.01375 | N25: =J25*L25 -> 8752.942231
B26: 2021 | D26: 0 | F26: =-'4. ICM_Assets_and_Rate_Base'!M357 -> 424385.0778 | H26: 1273155.234 | J26: 1060962.695 | L26: =AVERAGE('7. Funding Adder Revs'!C36:C39) -> 0.0057 | N26: 6047.487359
B27: 2022 | D27: 0 | F27: =-'4. ICM_Assets_and_Rate_Base'!O357 -> 424385.0778 | H27: =H26+D27+F27 -> 1697540.311 | J27: 1485347.772 | L27: =AVERAGE('7. Funding Adder Revs'!C40:C43) -> 0.01915 | N27: 28444.40984
B28: 2023 | D28: 0 | F28: =-'4. ICM_Assets_and_Rate_Base'!Q357 -> 424385.0778 | H28: 2121925.389 | J28: 1909732.85 | L28: =AVERAGE('7. Funding Adder Revs'!C44:C47) -> 0.05045 | N28: 96346.0223
B29: 2024 | D29: 0 | F29: =-'4. ICM_Assets_and_Rate_Base'!S357 -> 424385.0778 | H29: 2546310.467 | J29: 2334117.928 | L29: =AVERAGE('7. Funding Adder Revs'!C48:C51) -> 0.05145 | N29: 120090.3674
B30: 2025 | D30: 0 | F30: =-'4. ICM_Assets_and_Rate_Base'!U357 -> 383820.1225 | H30: 2930130.59 | J30: 2738220.528 | L30: =AVERAGE('7. Funding Adder Revs'!C52:C55) -> 0.03155 | N30: 86390.85767
B31: 2026 | D31: 0 | F31: =F30 -> 383820.1225 | H31: 3313950.712 | J31: 3122040.651 | L31: =AVERAGE('7. Funding Adder Revs'!C56:C59) -> 0.0255 | N31: =J31*L31 -> 79612.0366
B34: Cumulative Interest to 2018 | N34: =SUM($N$23:N23) -> 0
B35: Cumulative Interest to 2019 | N35: =SUM($N$23:N24) -> 4769.027312
B36: Cumulative Interest to 2020 | N36: =SUM($N$23:N25) -> 13521.96954
B37: Cumulative Interest to 2021 | N37: =SUM($N$23:N26) -> 19569.4569
B38: Cumulative Interest to 2022 | N38: =SUM($N$23:N27) -> 48013.86674
B39: Cumulative Interest to 2023 | N39: =SUM($N$23:N28) -> 144359.889
B40: Cumulative Interest to 2024 | N40: =SUM($N$23:N29) -> 264450.2564
B41: Cumulative Interest to 2025 | N41: =SUM($N$23:N30) -> 350841.1141
B42: Cumulative Interest to 2026 | N42: =SUM($N$23:N31) -> 430453.1507

Sheet 9. IRR
B14: This worksheet calculates the ICM Incremental Revenue Requirement.
B17: Sheet 9: ICM Incremental Revenue Requirement
G20: 2018 | I20: 2019 | K20: 2020 | M20: 2021 | O20: 2022 | Q20: 2023 | S20: 2024 | U20: 2025 | W20: 2026 | Y20: Total
C22: Deferred and forecasted ICM Incremental Revenue Requirement (from Sheet 6) | I22: ='6. ICMIRR_2019'!$F$88/12*10 -> 1132927.369 | K22: ='6. ICMIRR_2019'!$F$88 -> 1359512.842 | M22: ='6. ICMIRR_2019'!$F$88 -> 1359512.842 | O22: ='6. ICMIRR_2019'!$F$88 -> 1359512.842 | Q22: ='6. ICMIRR_2019'!$F$88 -> 1359512.842 | S22: ='6. ICMIRR_2019'!$F$88 -> 1359512.842 | U22: ='6. ICMIRR_2019'!$F$88 -> 1359512.842 | W22: ='6. ICMIRR_2019'!$F$88 -> 1359512.842 | Y22: =SUM(G22:W22) -> 10649517.27
C24: Interest on Deferred and forecasted Amortization Expense (Sheet 8) | G24: ='8. Opex Interest Annual'!$N$23 -> 0 | I24: ='8. Opex Interest Annual'!$N$24 -> 4769.027312 | K24: ='8. Opex Interest Annual'!$N$25 -> 8752.942231 | M24: ='8. Opex Interest Annual'!$N$26 -> 6047.487359 | O24: ='8. Opex Interest Annual'!$N$27 -> 28444.40984 | Q24: ='8. Opex Interest Annual'!$N$28 -> 96346.0223 | S24: ='8. Opex Interest Annual'!$N$29 -> 120090.3674 | U24: ='8. Opex Interest Annual'!$N$30 -> 86390.85767 | W24: ='8. Opex Interest Annual'!$N$31 -> 79612.0366 | Y24: =SUM(G24:W24) -> 430453.1507
C27: ICM Rate Rider Revenues (from Sheet 7) | G27: =SUM('7. Funding Adder Revs'!K26:K35) -> 0 | I27: =SUM('7. Funding Adder Revs'!K36:K47) -> 967693.6956 | K27: =SUM('7. Funding Adder Revs'!K48:K59) -> 1156417.674 | M27: =SUM('7. Funding Adder Revs'!K60:K71) -> 1156578.55 | O27: =SUM('7. Funding Adder Revs'!K72:K83) -> 1168433.121 | Q27: =SUM('7. Funding Adder Revs'!K84:K95) -> 1182227.661 | S27: =SUM('7. Funding Adder Revs'!K96:K107) -> 1188965.771 | U27: =SUM('7. Funding Adder Revs'!K108:K119) -> 1210922.132 | W27: =SUM('7. Funding Adder Revs'!K120:K131) -> 1203575.506 | Y27: =SUM(G27:W27) -> 9234814.11
C29: ICM Rate Rider Interest (from Sheet 7) | G29: =SUM('7. Funding Adder Revs'!M27:M35) -> 0 | I29: =SUM('7. Funding Adder Revs'!M36:M47) -> 7826.12 | K29: =SUM('7. Funding Adder Revs'!M48:M59) -> 18176.6 | M29: =SUM('7. Funding Adder Revs'!M60:M71) -> 15092.52 | O29: =SUM('7. Funding Adder Revs'!M72:M83) -> 77044.26 | Q29: =SUM('7. Funding Adder Revs'!M84:M95) -> 252499.24 | S29: =SUM('7. Funding Adder Revs'!M96:M107) -> 316307.48 | U29: =SUM('7. Funding Adder Revs'!M108:M119) -> 231651.53 | W29: =SUM('7. Funding Adder Revs'!M120:M131) -> 218752.72 | Y29: =SUM(G29:W29) -> 1137350.47
C31: Net Deferred Revenue Requirement | G31: =(G22+G24)-(G27+G29) -> 0 | I31: =(I22+I24)-(I27+I29) -> 162176.5804 | K31: =(K22+K24)-(K27+K29) -> 193671.511 | M31: =(M22+M24)-(M27+M29) -> 193889.2601 | O31: =(O22+O24)-(O27+O29) -> 142479.8708 | Q31: =(Q22+Q24)-(Q27+Q29) -> 21131.96388 | S31: =(S22+S24)-(S27+S29) -> -25670.04139 | U31: =(U22+U24)-(U27+U29) -> 3330.038342 | W31: =(W22+W24)-(W27+W29) -> 16796.65336 | Y31: =(Y22+Y24)-(Y27+Y29) -> 707805.8365
